,Portfolio,Expense Area,Cost Centre,Expense Type,Account Code,Amount,Supplier Name,SupplierId,Pay Date,Transaction No.
INSERTED DETAIL,Resources & Corporate Governance ,Toilet Cleaning,WBC01,Materials,0303,151.64,Arco Limited,100015,08/05/2014,10201221
INSERTED DETAIL,Resources & Corporate Governance ,Domestic Waste Collection,WWC00,Materials,0303,289.50,Arco Limited,100015,08/05/2014,10201221
INSERTED DETAIL,Resources & Corporate Governance ,Toilet Cleaning,WBC01,Personal Protective Clothing,0340,23.31,Arco Limited,100015,15/05/2014,10201856
INSERTED DETAIL,Resources & Corporate Governance ,Grounds Maintenance,WGM00,Personal Protective Clothing,0340,244.61,Arco Limited,100015,15/05/2014,10201856
INSERTED DETAIL,Resources & Corporate Governance ,Highways,WHG00,Personal Protective Clothing,0340,34.96,Arco Limited,100015,15/05/2014,10201856
INSERTED DETAIL,Resources & Corporate Governance ,Street Cleansing,WSC00,Personal Protective Clothing,0340,279.62,Arco Limited,100015,15/05/2014,10201856
INSERTED DETAIL,Resources & Corporate Governance ,Garage Internal,WVR01,Personal Protective Clothing,0340,46.61,Arco Limited,100015,15/05/2014,10201856
INSERTED DETAIL,Resources & Corporate Governance ,Domestic Waste Collection,WWC00,Personal Protective Clothing,0340,489.33,Arco Limited,100015,15/05/2014,10201856
INSERTED DETAIL,Resources & Corporate Governance ,Trade Waste Collection,WWC01,Personal Protective Clothing,0340,46.61,Arco Limited,100015,15/05/2014,10201856
INSERTED DETAIL,Resources & Corporate Governance ,TREE WORKS,WGM01,Personal Protective Clothing,0340,276.97,Arco Limited,100015,29/05/2014,10202392
INSERTED DETAIL,Resources & Corporate Governance,Housing Maintenance,WHM00,Personal Protective Clothing,0340,235.33,Arco Limited,100015,29/05/2014,10202392
INSERTED DETAIL,Housing Revenue Account ,Repairs and Maintenance - Void works,UMR09,R&M External Contractors,0100,604.86,AWM Electrical Contractors Ltd,100051,15/05/2014,10201336
INSERTED DETAIL,Housing Revenue Account ,Unplanned Maintenance and Repair,UMR00,R&M External Contractors,0100,621.95,AWM Electrical Contractors Ltd,100051,01/05/2014,10201338
INSERTED DETAIL,Housing Revenue Account ,Unplanned Maintenance and Repair,UMR00,R&M External Contractors,0100,1955.95,AWM Electrical Contractors Ltd,100051,01/05/2014,10201339
INSERTED DETAIL,Housing Revenue Account ,Unplanned Maintenance and Repair,UMR00,R&M External Contractors,0100,524.08,AWM Electrical Contractors Ltd,100051,15/05/2014,10201725
INSERTED DETAIL,Capital Programme ,Rewiring,HCE20,Capital Contract Payments,5000,1613.00,AWM Electrical Contractors Ltd,100051,15/05/2014,10201725
INSERTED DETAIL,Housing Revenue Account ,Unplanned Maintenance and Repair,UMR00,R&M External Contractors,0100,632.35,AWM Electrical Contractors Ltd,100051,08/05/2014,10201760
INSERTED DETAIL,Housing Revenue Account ,Unplanned Maintenance and Repair,UMR00,R&M External Contractors,0100,1848.97,AWM Electrical Contractors Ltd,100051,08/05/2014,10201871
INSERTED DETAIL,Housing Revenue Account ,Repairs and Maintenance - Void works,UMR09,R&M External Contractors,0100,561.27,AWM Electrical Contractors Ltd,100051,15/05/2014,10201872
INSERTED DETAIL,Housing Revenue Account ,Repairs and Maintenance - Void works,UMR09,R&M External Contractors,0100,611.69,AWM Electrical Contractors Ltd,100051,15/05/2014,10202045
INSERTED DETAIL,Housing Revenue Account ,Unplanned Maintenance and Repair,UMR00,R&M External Contractors,0100,1379.64,AWM Electrical Contractors Ltd,100051,15/05/2014,10202253
INSERTED DETAIL,Housing Revenue Account ,Unplanned Maintenance and Repair,UMR00,R&M External Contractors,0100,1368.86,AWM Electrical Contractors Ltd,100051,22/05/2014,10202491
INSERTED DETAIL,Housing Revenue Account ,Unplanned Maintenance and Repair,UMR00,R&M External Contractors,0100,44.02,AWM Electrical Contractors Ltd,100051,29/05/2014,10202492
INSERTED DETAIL,Housing Revenue Account ,Repairs and Maintenance - Void works,UMR09,R&M External Contractors,0100,773.84,AWM Electrical Contractors Ltd,100051,29/05/2014,10202492
INSERTED DETAIL,Housing Revenue Account ,Unplanned Maintenance and Repair,UMR00,R&M External Contractors,0100,1543.54,AWM Electrical Contractors Ltd,100051,29/05/2014,10202682
INSERTED DETAIL,Housing Revenue Account ,Unplanned Maintenance and Repair,UMR00,R&M External Contractors,0100,649.90,AWM Electrical Contractors Ltd,100051,29/05/2014,10202683
INSERTED DETAIL,Sustainable Inclusive Communities,CL Grants,CGS00,Other Agencies,0734,17000.00,Age Concern Warwickshire,100082,15/05/2014,10201461
INSERTED DETAIL,Sustainable Environment,Crematorium,CRM00,Materials,0303,1257.75,Banks Amenity Products Ltd,100133,08/05/2014,10201206
INSERTED DETAIL,Sustainable Environment ,Grass Cutting,PKS13,External Contractor & Operator,0742,4091.00,Brinklow Parish Council,100157,08/05/2014,10201776
INSERTED DETAIL,Resources & Corporate Governance ,Council Tax and NNDR Collection,CTX01,External Contractor & Operator,0742,306.50,Bristow & Sutor,100159,15/05/2014,10202164
INSERTED DETAIL,Resources & Corporate Governance ,Council Tax and NNDR Collection,CTX01,External Legal Costs,0741,389.87,Bristow & Sutor,100159,29/05/2014,10202637
INSERTED DETAIL,Housing Revenue Account ,Sheltered Housing,AGP00,Telephone Expenses,0371,4409.44,British Telecommunications Plc,100161,22/05/2014,10202292
INSERTED DETAIL,Resources & Corporate Governance,Corporate Property Administration,CPA00,Telephone Expenses,0371,57.00,British Telecommunications Plc,100161,22/05/2014,10202292
INSERTED DETAIL,Housing Revenue Account ,Multi-Storey Flats,MSF00,Telephone Expenses,0371,76.08,British Telecommunications Plc,100161,22/05/2014,10202292
INSERTED DETAIL,Sustainable Inclusive Communities,Woodside Park,TVR00,Telephone Expenses,0371,85.59,British Telecommunications Plc,100161,22/05/2014,10202292
INSERTED DETAIL,Economy Development & Culture,Building Regulation Fee Earning Account,BCS99,Subscriptions,0421,564.00,Bsi,100291,15/05/2014,10201932
INSERTED DETAIL,Resources & Corporate Governance,Corporate Property R&M,CPA01,R&M External Contractors,0100,840.10,Chillaire Service & Maintenance Ltd,100305,08/05/2014,10201467
INSERTED DETAIL,Housing Revenue Account ,Unplanned Maintenance and Repair,UMR00,R&M External Contractors,0100,1295.00,Chillaire Service & Maintenance Ltd,100305,22/05/2014,10201468
INSERTED DETAIL,Resources & Corporate Governance,Corporate Property R&M,CPA01,R&M External Contractors,0100,1295.00,Chillaire Service & Maintenance Ltd,100305,08/05/2014,10201469
INSERTED DETAIL,Sustainable Environment ,Grass Cutting,PKS13,External Contractor & Operator,0742,1059.00,Church Lawford Parish Council,100306,15/05/2014,10201577
INSERTED DETAIL,Resources & Corporate Governance ,Financial Services,RES10,Conference & Seminar Fees,0401,1560.00,Cipfa Business Ltd,100341,01/05/2014,10201335
INSERTED DETAIL,Sustainable Environment ,Clinical Waste,REF04,External Contractor & Operator,0742,440.96,OCS Group UK Ltd t/a Cannon,100436,08/05/2014,10201784
INSERTED DETAIL,Sustainable Environment ,Clinical Waste,REF04,External Contractor & Operator,0742,447.56,OCS Group UK Ltd t/a Cannon,100436,15/05/2014,10201868
INSERTED DETAIL,Sustainable Environment,Regulatory Services,REG00,Other Miscellaneous Expenses,0444,1500.00,Heart Of England Co-operative Society Ltd,100479,01/05/2014,10201179
INSERTED DETAIL,Resources & Corporate Governance ,Domestic Waste Collection,WWC00,Vehicle Repair and Maintenance,0200,1018.45,Dennis Eagle Ltd,100559,01/05/2014,10200872
INSERTED DETAIL,Capital Programme ,Disabled Adaptations,HCR01,Capital Contract Payments,5000,1100.00,JADA Building & Maintenance Services Ltd,100583,01/05/2014,10201399
INSERTED DETAIL,Capital Programme ,Bathroom Modifications,HIS01,Capital Contract Payments,5000,27499.99,JADA Building & Maintenance Services Ltd,100583,15/05/2014,10202257
INSERTED DETAIL,Capital Programme ,Bathroom Modifications,HIS01,Capital Contract Payments,5000,2549.99,JADA Building & Maintenance Services Ltd,100583,22/05/2014,10202339
INSERTED DETAIL,Capital Programme ,Bathroom Modifications,HIS01,Capital Contract Payments,5000,7579.26,JADA Building & Maintenance Services Ltd,100583,22/05/2014,10202490
INSERTED DETAIL,Capital Programme ,Bathroom Modifications,HIS01,Capital Contract Payments,5000,9980.00,JADA Building & Maintenance Services Ltd,100583,29/05/2014,10202613
INSERTED DETAIL,Capital Programme ,Bathroom Modifications,HIS01,Capital Contract Payments,5000,17959.87,JADA Building & Maintenance Services Ltd,100583,29/05/2014,10202679
INSERTED DETAIL,Housing Revenue Account ,Repairs and Maintenance - Void works,UMR09,R&M External Contractors,0100,895.58,Dulux Decorator Centres,100597,15/05/2014,10202149
INSERTED DETAIL,Resources & Corporate Governance ,Grounds Maintenance,WGM00,Materials,0303,525.60,Europlants UK Ltd,100631,01/05/2014,10201226
INSERTED DETAIL,Sustainable Environment,Crematorium,CRM00,Materials,0303,1159.77,Europlants UK Ltd,100631,15/05/2014,10201739
INSERTED DETAIL,Resources & Corporate Governance ,WSU Depot,WDP00,Gas,0131,798.40,ESPO,100641,08/05/2014,10201124
INSERTED DETAIL,Resources & Corporate Governance,Housing Maintenance,WHM00,Agency Staff,0003,440.67,First Personnel Group Plc,100807,08/05/2014,10201359
INSERTED DETAIL,Resources & Corporate Governance,Housing Maintenance,WHM00,Agency Staff,0003,440.67,First Personnel Group Plc,100807,15/05/2014,10202077
INSERTED DETAIL,Resources & Corporate Governance,Housing Maintenance,WHM00,Agency Staff,0003,440.67,First Personnel Group Plc,100807,15/05/2014,10202173
INSERTED DETAIL,Resources & Corporate Governance ,Trade Waste Collection,WWC01,External Contractor & Operator,0742,1295.21,Container Services UK Limited,100811,08/05/2014,10201600
INSERTED DETAIL,Resources & Corporate Governance ,Domestic Waste Collection,WWC00,Materials,0303,227.88,Container Services UK Limited,100811,08/05/2014,10201774
INSERTED DETAIL,Resources & Corporate Governance ,Trade Waste Collection,WWC01,Materials,0303,683.62,Container Services UK Limited,100811,08/05/2014,10201774
INSERTED DETAIL,Resources & Corporate Governance ,Domestic Waste Collection,WWC00,Vehicle Repair and Maintenance,0200,762.30,Ford & Slater,100817,22/05/2014,10202313
INSERTED DETAIL,Resources & Corporate Governance ,Garage Internal,WVR01,Vehicle Running Costs,0201,2180.00,Fuchs Lubricants (Uk) Plc,100832,08/05/2014,10201520
INSERTED DETAIL,Resources & Corporate Governance ,Domestic Waste Collection,WWC00,Vehicle Repair and Maintenance,0200,799.14,FAUN Zoeller (UK) Ltd,100871,01/05/2014,10201199
INSERTED DETAIL,Resources & Corporate Governance ,Town Hall,OFF00,Materials,0303,675.44,Greenham,100890,08/05/2014,10201498
INSERTED DETAIL,Resources & Corporate Governance ,Town Hall,OFF00,Materials,0303,559.64,Greenham,100890,29/05/2014,10202374
INSERTED DETAIL,Economy Development & Culture,Planning General/Income,PLN00,Other Agencies,0734,9694.77,Gerald Eve,100929,08/05/2014,10201721
INSERTED DETAIL,Resources & Corporate Governance ,Human Resources Centralised Services,RES31,Recruitment Expenses,0012,450.20,TMP (UK) LTD,100972,08/05/2014,10201433
INSERTED DETAIL,Resources & Corporate Governance ,Human Resources Centralised Services,RES31,Recruitment Expenses,0012,1161.70,TMP (UK) LTD,100972,15/05/2014,10202018
INSERTED DETAIL,Resources & Corporate Governance ,Town Hall,OFF00,New Equipment,0300,536.68,IE Office Equipment Ltd,101114,01/05/2014,10201428
INSERTED DETAIL,Resources & Corporate Governance ,Town Hall,OFF00,Furniture,0302,553.11,IE Office Equipment Ltd,101114,22/05/2014,10202096
INSERTED DETAIL,Resources & Corporate Governance ,Town Hall,OFF00,New Equipment,0300,425.16,IE Office Equipment Ltd,101114,29/05/2014,10202402
INSERTED DETAIL,Sustainable Inclusive Communities,Housing Strategy & Enabling,HSE00,Training fees,0011,970.00,Chartered Institute Of Housing,101122,01/05/2014,10201499
INSERTED DETAIL,Housing Revenue Account ,Control Centre (HRA),CCE00,Maintenance of Equipment,0301,13110.00,Chubb Systems LTD,101154,08/05/2014,10201611
INSERTED DETAIL,Housing Revenue Account ,Control Centre (HRA),CCE00,New Equipment,0300,1715.00,Chubb Systems LTD,101154,08/05/2014,10201649
INSERTED DETAIL,Resources & Corporate Governance ,Grounds Maintenance,WGM00,Materials,0303,635.00,James Coles & Sons (Nurseries) Ltd,101165,01/05/2014,10200935
INSERTED DETAIL,Resources & Corporate Governance,Housing Maintenance,WHM00,External Contractor & Operator,0742,1953.58,Clews Recycling Limited,101213,29/05/2014,10200818
INSERTED DETAIL,Resources & Corporate Governance ,Grounds Maintenance,WGM00,External Contractor & Operator,0742,7344.00,K A Hicks,101216,15/05/2014,10201416
INSERTED DETAIL,Economy Development & Culture,Planning General/Income,PLN00,Consultancy Costs,0740,2571.65,L G S Ltd,101252,22/05/2014,10202445
INSERTED DETAIL,Economy Development & Culture,AGM Exhibitions/Outreach,AGM02,Other Miscellaneous Expenses,0444,428.99,Lion Picture Framing Supplies Ltd,101260,15/05/2014,10201869
INSERTED DETAIL,Resources & Corporate Governance,Housing Maintenance,WHM00,Materials,0303,1017.00,Melbros Ltd,101291,29/05/2014,10198300
INSERTED DETAIL,Resources & Corporate Governance,Housing Maintenance,WHM00,Materials,0303,588.00,Melbros Ltd,101291,22/05/2014,10198317
INSERTED DETAIL,Resources & Corporate Governance,Housing Maintenance,WHM00,Materials,0303,493.00,Melbros Ltd,101291,29/05/2014,10199753
INSERTED DETAIL,Resources & Corporate Governance,Housing Maintenance,WHM00,Materials,0303,963.99,Melbros Ltd,101291,01/05/2014,10200025
INSERTED DETAIL,Resources & Corporate Governance,Housing Maintenance,WHM00,Materials,0303,1118.01,Melbros Ltd,101291,29/05/2014,10200105
INSERTED DETAIL,Resources & Corporate Governance,Housing Maintenance,WHM00,Materials,0303,734.36,Melbros Ltd,101291,22/05/2014,10200973
INSERTED DETAIL,Sustainable Environment ,Grass Cutting,PKS13,External Contractor & Operator,0742,2548.00,Monks Kirby Parish Council,101300,01/05/2014,10201529
INSERTED DETAIL,Housing Revenue Account ,Unplanned Maintenance and Repair,UMR00,R&M External Contractors,0100,2591.00,Msm Environmental Services,101317,08/05/2014,10201873
INSERTED DETAIL,Resources & Corporate Governance ,Domestic Waste Collection,WWC00,Vehicle Repair and Maintenance,0200,2614.63,Noden Truck Centre Ltd,101368,15/05/2014,10201968
INSERTED DETAIL,Resources & Corporate Governance ,Street Cleansing,WSC00,Vehicle Repair and Maintenance,0200,741.24,Noden Truck Centre Ltd,101368,22/05/2014,10202211
INSERTED DETAIL,Resources & Corporate Governance ,Maintenance of Customer Services Systems,CIS21,Software Maintenance,0374,795.00,Ncc Services Limited,101374,22/05/2014,10202337
INSERTED DETAIL,Economy Development & Culture,Visitor Centre,VSC00,Events Tickets - Zero Rated,1405,1124.72,National Express Ltd,101392,08/05/2014,10201736
INSERTED DETAIL,Economy Development & Culture,Visitor Centre,VSC00,Events Tickets - Zero Rated,1405,1124.72,National Express Ltd,101392,15/05/2014,10201874
INSERTED DETAIL,Sustainable Inclusive Communities,CL Grants,CGS00,Other Agencies,0734,12000.00,Orbit Group Limited,101414,22/05/2014,10202240
INSERTED DETAIL,Capital Programme ,Disc. Grants Home Safety Surveys,GRA03,Capital Contract Payments,5000,35000.00,Orbit Group Limited,101414,15/05/2014,10202242
INSERTED DETAIL,Resources & Corporate Governance,Central Business Support Services,CSS15,External Printing,0352,930.00,Polycopy,101428,15/05/2014,10202168
INSERTED DETAIL,Resources & Corporate Governance,Central Business Support Services,CSS15,Stationery Supplies,0350,510.00,Polycopy,101428,22/05/2014,10202412
INSERTED DETAIL,Sustainable Inclusive Communities,Sewage Disposal Plant,SDP00,R&M External Contractors,0100,1165.50,PJT Pumping Services,101438,15/05/2014,10202150
INSERTED DETAIL,Sustainable Inclusive Communities,Sewage Disposal Plant,SDP00,R&M External Contractors,0100,520.28,PJT Pumping Services,101438,22/05/2014,10202348
INSERTED DETAIL,Resources & Corporate Governance ,Grounds Maintenance,WGM00,External Contractor & Operator,0742,3245.00,Post To Post Fencing,101490,01/05/2014,10201138
INSERTED DETAIL,Capital Programme ,Disabled Adaptations,HCR01,Capital Contract Payments,5000,5400.00,Reeds Plumbing & Heating Contractors Ltd,101504,22/05/2014,10202341
INSERTED DETAIL,Capital Programme ,Bathroom Modifications,HIS01,Capital Contract Payments,5000,9440.00,Reeds Plumbing & Heating Contractors Ltd,101504,22/05/2014,10202341
INSERTED DETAIL,Capital Programme ,Bathroom Modifications,HIS01,Capital Contract Payments,5000,14304.00,Reeds Plumbing & Heating Contractors Ltd,101504,22/05/2014,10202342
INSERTED DETAIL,Capital Programme ,Disabled Adaptations,HCR01,Capital Contract Payments,5000,1800.00,Reeds Plumbing & Heating Contractors Ltd,101504,22/05/2014,10202494
INSERTED DETAIL,Resources & Corporate Governance ,WSU Depot,WDP00,Rates,0141,37596.00,Rugby Borough Council,101516,15/05/2014,10200218
INSERTED DETAIL,Sustainable Environment,Crematorium,CRM00,Internal Contractor,0743,576.42,Rugby Borough Council,101516,01/05/2014,10200875
INSERTED DETAIL,Housing Revenue Account ,Repairs and Maintenance - Void works,UMR09,Council Tax,0142,1035.53,Rugby Borough Council,101516,29/05/2014,10201191
INSERTED DETAIL,Housing Revenue Account ,Repairs and Maintenance - Void works,UMR09,Council Tax,0142,1161.43,Rugby Borough Council,101516,29/05/2014,10201192
INSERTED DETAIL,Housing Revenue Account ,Repairs and Maintenance - Void works,UMR09,Council Tax,0142,1122.06,Rugby Borough Council,101516,29/05/2014,10201193
INSERTED DETAIL,Resources & Corporate Governance ,Domestic Waste Collection,WWC00,Vehicle Repair and Maintenance,0200,595.00,Rugby Mobile Windscreens,101520,01/05/2014,10201147
INSERTED DETAIL,Housing Revenue Account ,Property Maintenance,MAN23,Agency Staff,0003,485.63,Rugby Recruitment Services Ltd,101521,01/05/2014,10201326
INSERTED DETAIL,Housing Revenue Account ,Property Maintenance,MAN23,Agency Staff,0003,485.63,Rugby Recruitment Services Ltd,101521,15/05/2014,10202032
INSERTED DETAIL,Housing Revenue Account ,Property Maintenance,MAN23,Agency Staff,0003,488.86,Rugby Recruitment Services Ltd,101521,29/05/2014,10202631
INSERTED DETAIL,Economy Development & Culture,Art Gallery and Museum,AGM00,Postage & Distribution,0370,6.70,Royal Mail,101554,01/05/2014,10200913
INSERTED DETAIL,Economy Development & Culture,Building Control Services,BCS00,Postage & Distribution,0370,0.42,Royal Mail,101554,01/05/2014,10200913
INSERTED DETAIL,Economy Development & Culture,Building Control Services Non-Fee Earning Account,BCS01,Postage & Distribution,0370,0.43,Royal Mail,101554,01/05/2014,10200913
INSERTED DETAIL,Economy Development & Culture,Building Regulation Fee Earning Account,BCS99,Postage & Distribution,0370,7.65,Royal Mail,101554,01/05/2014,10200913
INSERTED DETAIL,Economy Development & Culture,Car Parks General,CPK01,Postage & Distribution,0370,73.33,Royal Mail,101554,01/05/2014,10200913
INSERTED DETAIL,Resources & Corporate Governance,Central Business Support Services,CSS15,Postage & Distribution,0370,597.80,Royal Mail,101554,01/05/2014,10200913
INSERTED DETAIL,Resources & Corporate Governance ,Council Tax and NNDR Collection,CTX01,Postage & Distribution,0370,22.78,Royal Mail,101554,01/05/2014,10200913
INSERTED DETAIL,Economy Development & Culture,Decrim. of Car Parking on street parking,DPE02,Postage & Distribution,0370,293.33,Royal Mail,101554,01/05/2014,10200913
INSERTED DETAIL,Resources & Corporate Governance ,Electoral Registration,ERG00,Postage & Distribution,0370,166.67,Royal Mail,101554,01/05/2014,10200913
INSERTED DETAIL,Sustainable Inclusive Communities,Housing Benefit Administration,HBA00,Postage & Distribution,0370,279.36,Royal Mail,101554,01/05/2014,10200913
INSERTED DETAIL,Housing Revenue Account ,Supervision and Management General,MAN00,Postage & Distribution,0370,110.81,Royal Mail,101554,01/05/2014,10200913
INSERTED DETAIL,Economy Development & Culture,Planning General/Income,PLN00,Postage & Distribution,0370,202.21,Royal Mail,101554,01/05/2014,10200913
INSERTED DETAIL,Resources & Corporate Governance ,General Administration,WAD00,Postage & Distribution,0370,6.24,Royal Mail,101554,01/05/2014,10200913
INSERTED DETAIL,Economy Development & Culture,Art Gallery and Museum,AGM00,Postage & Distribution,0370,3.06,Royal Mail,101554,01/05/2014,10201164
INSERTED DETAIL,Economy Development & Culture,Building Control Services,BCS00,Postage & Distribution,0370,1.22,Royal Mail,101554,01/05/2014,10201164
INSERTED DETAIL,Economy Development & Culture,Building Control Services Non-Fee Earning Account,BCS01,Postage & Distribution,0370,1.23,Royal Mail,101554,01/05/2014,10201164
INSERTED DETAIL,Economy Development & Culture,Building Regulation Fee Earning Account,BCS99,Postage & Distribution,0370,22.05,Royal Mail,101554,01/05/2014,10201164
INSERTED DETAIL,Economy Development & Culture,Car Parks General,CPK01,Postage & Distribution,0370,11.17,Royal Mail,101554,01/05/2014,10201164
INSERTED DETAIL,Resources & Corporate Governance,Central Business Support Services,CSS15,Postage & Distribution,0370,276.44,Royal Mail,101554,01/05/2014,10201164
INSERTED DETAIL,Resources & Corporate Governance ,Council Tax and NNDR Collection,CTX01,Postage & Distribution,0370,451.89,Royal Mail,101554,01/05/2014,10201164
INSERTED DETAIL,Economy Development & Culture,Decrim. of Car Parking on street parking,DPE02,Postage & Distribution,0370,44.69,Royal Mail,101554,01/05/2014,10201164
INSERTED DETAIL,Resources & Corporate Governance ,Electoral Registration,ERG00,Postage & Distribution,0370,25.56,Royal Mail,101554,01/05/2014,10201164
INSERTED DETAIL,Sustainable Inclusive Communities,Housing Benefit Administration,HBA00,Postage & Distribution,0370,94.46,Royal Mail,101554,01/05/2014,10201164
INSERTED DETAIL,Housing Revenue Account ,Supervision and Management General,MAN00,Postage & Distribution,0370,41.73,Royal Mail,101554,01/05/2014,10201164
INSERTED DETAIL,Economy Development & Culture,Planning General/Income,PLN00,Postage & Distribution,0370,93.68,Royal Mail,101554,01/05/2014,10201164
INSERTED DETAIL,Resources & Corporate Governance ,General Administration,WAD00,Postage & Distribution,0370,0.49,Royal Mail,101554,01/05/2014,10201164
INSERTED DETAIL,Resources & Corporate Governance ,Electoral Registration,ERG00,Postage & Distribution,0370,460.92,Royal Mail,101554,01/05/2014,10201272
INSERTED DETAIL,Resources & Corporate Governance ,Borough Elections,ELC00,Postage & Distribution,0370,2851.87,Royal Mail,101554,01/05/2014,10201323
INSERTED DETAIL,Resources & Corporate Governance ,European Elections,ELC04,Postage & Distribution,0370,16224.51,Royal Mail,101554,08/05/2014,10201463
INSERTED DETAIL,Economy Development & Culture,Art Gallery and Museum,AGM00,Postage & Distribution,0370,1.72,Royal Mail,101554,15/05/2014,10201718
INSERTED DETAIL,Economy Development & Culture,Building Control Services,BCS00,Postage & Distribution,0370,0.72,Royal Mail,101554,15/05/2014,10201718
INSERTED DETAIL,Economy Development & Culture,Building Control Services Non-Fee Earning Account,BCS01,Postage & Distribution,0370,0.72,Royal Mail,101554,15/05/2014,10201718
INSERTED DETAIL,Economy Development & Culture,Building Regulation Fee Earning Account,BCS99,Postage & Distribution,0370,13.02,Royal Mail,101554,15/05/2014,10201718
INSERTED DETAIL,Economy Development & Culture,Car Parks General,CPK01,Postage & Distribution,0370,42.10,Royal Mail,101554,15/05/2014,10201718
INSERTED DETAIL,Resources & Corporate Governance,Central Business Support Services,CSS15,Postage & Distribution,0370,264.80,Royal Mail,101554,15/05/2014,10201718
INSERTED DETAIL,Resources & Corporate Governance ,Council Tax and NNDR Collection,CTX01,Postage & Distribution,0370,1035.10,Royal Mail,101554,15/05/2014,10201718
INSERTED DETAIL,Economy Development & Culture,Decrim. of Car Parking on street parking,DPE02,Postage & Distribution,0370,168.41,Royal Mail,101554,15/05/2014,10201718
INSERTED DETAIL,Resources & Corporate Governance ,Electoral Registration,ERG00,Postage & Distribution,0370,5.88,Royal Mail,101554,15/05/2014,10201718
INSERTED DETAIL,Sustainable Inclusive Communities,Housing Benefit Administration,HBA00,Postage & Distribution,0370,210.74,Royal Mail,101554,15/05/2014,10201718
INSERTED DETAIL,Housing Revenue Account ,Supervision and Management General,MAN00,Postage & Distribution,0370,53.35,Royal Mail,101554,15/05/2014,10201718
INSERTED DETAIL,Economy Development & Culture,Planning General/Income,PLN00,Postage & Distribution,0370,159.74,Royal Mail,101554,15/05/2014,10201718
INSERTED DETAIL,Resources & Corporate Governance ,General Administration,WAD00,Postage & Distribution,0370,0.98,Royal Mail,101554,15/05/2014,10201718
INSERTED DETAIL,Economy Development & Culture,Art Gallery and Museum,AGM00,Postage & Distribution,0370,1.47,Royal Mail,101554,22/05/2014,10201925
INSERTED DETAIL,Economy Development & Culture,Building Control Services,BCS00,Postage & Distribution,0370,2.47,Royal Mail,101554,22/05/2014,10201925
INSERTED DETAIL,Economy Development & Culture,Building Control Services Non-Fee Earning Account,BCS01,Postage & Distribution,0370,2.47,Royal Mail,101554,22/05/2014,10201925
INSERTED DETAIL,Economy Development & Culture,Building Regulation Fee Earning Account,BCS99,Postage & Distribution,0370,44.54,Royal Mail,101554,22/05/2014,10201925
INSERTED DETAIL,Economy Development & Culture,Car Parks General,CPK01,Postage & Distribution,0370,23.00,Royal Mail,101554,22/05/2014,10201925
INSERTED DETAIL,Resources & Corporate Governance,Central Business Support Services,CSS15,Postage & Distribution,0370,180.94,Royal Mail,101554,22/05/2014,10201925
INSERTED DETAIL,Resources & Corporate Governance ,Council Tax and NNDR Collection,CTX01,Postage & Distribution,0370,427.31,Royal Mail,101554,22/05/2014,10201925
INSERTED DETAIL,Economy Development & Culture,Decrim. of Car Parking on street parking,DPE02,Postage & Distribution,0370,91.99,Royal Mail,101554,22/05/2014,10201925
INSERTED DETAIL,Resources & Corporate Governance ,Electoral Registration,ERG00,Postage & Distribution,0370,37.35,Royal Mail,101554,22/05/2014,10201925
INSERTED DETAIL,Sustainable Inclusive Communities,Housing Benefit Administration,HBA00,Postage & Distribution,0370,162.75,Royal Mail,101554,22/05/2014,10201925
INSERTED DETAIL,Housing Revenue Account ,Supervision and Management General,MAN00,Postage & Distribution,0370,29.75,Royal Mail,101554,22/05/2014,10201925
INSERTED DETAIL,Economy Development & Culture,Planning General/Income,PLN00,Postage & Distribution,0370,32.24,Royal Mail,101554,22/05/2014,10201925
INSERTED DETAIL,Resources & Corporate Governance ,General Administration,WAD00,Postage & Distribution,0370,1.96,Royal Mail,101554,22/05/2014,10201925
INSERTED DETAIL,Resources & Corporate Governance ,European Elections,ELC04,Postage & Distribution,0370,4509.48,Royal Mail,101554,29/05/2014,10202247
INSERTED DETAIL,Capital Programme ,Disabled Facilities Grant,REN01,Capital Grants,5014,2637.00,Stannah Stairlifts Ltd,101623,01/05/2014,10201331
INSERTED DETAIL,Capital Programme ,Disabled Facilities Grant,REN01,Capital Grants,5014,4345.00,Stannah Stairlifts Ltd,101623,15/05/2014,10202152
INSERTED DETAIL,Capital Programme ,Disabled Adaptations,HCR01,Capital Contract Payments,5000,815.00,Stannah Stairlifts Ltd,101623,22/05/2014,10202447
INSERTED DETAIL,Resources & Corporate Governance,Housing Maintenance,WHM00,External Contractor & Operator,0742,533.50,Symon Builders Limited,101630,29/05/2014,10200677
INSERTED DETAIL,Capital Programme ,CCTV for Reception Area,RTV00,Capital Contract Payments,5000,1227.00,Secom Plc,101671,01/05/2014,10201289
INSERTED DETAIL,Resources & Corporate Governance ,WSU Depot,WDP00,Telephone Expenses,0371,581.76,Secom Plc,101671,01/05/2014,10201510
INSERTED DETAIL,Sustainable Environment ,Grass Cutting,PKS13,External Contractor & Operator,0742,511.00,Thurlaston Parish Council,101726,15/05/2014,10202144
INSERTED DETAIL,Resources & Corporate Governance,Housing Maintenance,WHM00,Materials,0303,3055.02,Travis Perkins Trading Co Ltd,101732,01/05/2014,10200687
INSERTED DETAIL,Resources & Corporate Governance,Housing Maintenance,WHM00,Materials,0303,2932.98,Travis Perkins Trading Co Ltd,101732,08/05/2014,10201013
INSERTED DETAIL,Resources & Corporate Governance,Housing Maintenance,WHM00,Materials,0303,2441.36,Travis Perkins Trading Co Ltd,101732,29/05/2014,10201456
INSERTED DETAIL,Resources & Corporate Governance,Housing Maintenance,WHM00,Materials,0303,2233.59,Travis Perkins Trading Co Ltd,101732,29/05/2014,10201870
INSERTED DETAIL,Resources & Corporate Governance ,Street Cleansing,WSC00,Vehicle Running Costs,0201,222.68,HI-Q Motorway,101736,08/05/2014,10201709
INSERTED DETAIL,Resources & Corporate Governance ,Domestic Waste Collection,WWC00,Vehicle Running Costs,0201,904.91,HI-Q Motorway,101736,08/05/2014,10201709
INSERTED DETAIL,Resources & Corporate Governance ,Trade Waste Collection,WWC01,Vehicle Running Costs,0201,476.91,HI-Q Motorway,101736,08/05/2014,10201709
INSERTED DETAIL,Resources & Corporate Governance ,Domestic Waste Collection,WWC00,Vehicle Running Costs,0201,266.00,HI-Q Motorway,101736,08/05/2014,10201714
INSERTED DETAIL,Resources & Corporate Governance ,Trade Waste Collection,WWC01,Vehicle Running Costs,0201,208.00,HI-Q Motorway,101736,08/05/2014,10201714
INSERTED DETAIL,Resources & Corporate Governance ,TREE WORKS,WGM01,Vehicle Running Costs,0201,53.69,HI-Q Motorway,101736,08/05/2014,10201715
INSERTED DETAIL,Resources & Corporate Governance ,Domestic Waste Collection,WWC00,Vehicle Running Costs,0201,613.97,HI-Q Motorway,101736,08/05/2014,10201715
INSERTED DETAIL,Resources & Corporate Governance ,Trade Waste Collection,WWC01,Vehicle Running Costs,0201,221.50,HI-Q Motorway,101736,08/05/2014,10201715
INSERTED DETAIL,Resources & Corporate Governance ,Domestic Waste Collection,WWC00,Vehicle Running Costs,0201,1242.00,HI-Q Motorway,101736,08/05/2014,10201902
INSERTED DETAIL,Resources & Corporate Governance ,Garage Internal,WVR01,Materials,0303,40.00,HI-Q Motorway,101736,08/05/2014,10201902
INSERTED DETAIL,Resources & Corporate Governance ,Domestic Waste Collection,WWC00,Vehicle Running Costs,0201,1040.00,HI-Q Motorway,101736,22/05/2014,10202306
INSERTED DETAIL,Resources & Corporate Governance ,Domestic Waste Collection,WWC00,Vehicle Running Costs,0201,832.00,HI-Q Motorway,101736,22/05/2014,10202307
INSERTED DETAIL,Resources & Corporate Governance ,Trade Waste Collection,WWC01,Vehicle Running Costs,0201,487.91,HI-Q Motorway,101736,22/05/2014,10202307
INSERTED DETAIL,Resources & Corporate Governance ,Grounds Maintenance,WGM00,Contract Hire,0220,69.48,HI-Q Motorway,101736,22/05/2014,10202307
INSERTED DETAIL,Sustainable Environment,Crematorium,CRM00,Tools,0304,611.13,Tudor Environmental,101743,08/05/2014,10201451
INSERTED DETAIL,Resources & Corporate Governance ,Grounds Maintenance,WGM00,Tools,0304,869.60,Tudor Environmental,101743,15/05/2014,10201823
INSERTED DETAIL,Housing Revenue Account ,Sheltered Housing,AGP00,Telephone Expenses,0371,258.87,Vodafone Corporate Ltd,101831,15/05/2014,10201604
INSERTED DETAIL,Housing Revenue Account ,Control Centre (HRA),CCE00,Telephone Expenses,0371,8.53,Vodafone Corporate Ltd,101831,15/05/2014,10201604
INSERTED DETAIL,Resources & Corporate Governance ,Council Tax and NNDR Collection,CTX01,Telephone Expenses,0371,6.37,Vodafone Corporate Ltd,101831,15/05/2014,10201604
INSERTED DETAIL,Sustainable Inclusive Communities,Housing Options Team,HOT00,Telephone Expenses,0371,48.00,Vodafone Corporate Ltd,101831,15/05/2014,10201604
INSERTED DETAIL,Housing Revenue Account ,Supervision and Management General,MAN00,Telephone Expenses,0371,131.54,Vodafone Corporate Ltd,101831,15/05/2014,10201604
INSERTED DETAIL,Housing Revenue Account ,Estate Management,MAN22,Telephone Expenses,0371,54.00,Vodafone Corporate Ltd,101831,15/05/2014,10201604
INSERTED DETAIL,Housing Revenue Account ,Multi-Storey Flats,MSF00,Telephone Expenses,0371,8.62,Vodafone Corporate Ltd,101831,15/05/2014,10201604
INSERTED DETAIL,Housing Revenue Account ,Repairs and Maintenance - Void works,UMR09,Telephone Expenses,0371,34.44,Vodafone Corporate Ltd,101831,15/05/2014,10201604
INSERTED DETAIL,Sustainable Environment ,Grass Cutting,PKS13,External Contractor & Operator,0742,578.00,Withybrook Parish Council,101849,15/05/2014,10202023
INSERTED DETAIL,Economy Development & Culture,Planning General/Income,PLN00,External Legal Costs,0741,15039.82,Wragge & Co.,101856,01/05/2014,10201247
INSERTED DETAIL,Economy Development & Culture,Planning General/Income,PLN00,External Legal Costs,0741,10718.95,Wragge & Co.,101856,01/05/2014,10201248
INSERTED DETAIL,Sustainable Environment ,Parks,PKS00,Subscriptions,0421,500.00,Warwickshire Wildlife Trust,101860,01/05/2014,10201261
INSERTED DETAIL,Sustainable Environment ,Parks,PKS00,External Contractor & Operator,0742,3443.91,Warwickshire Wildlife Trust,101860,08/05/2014,10201660
INSERTED DETAIL,Sustainable Environment ,Parks,PKS00,External Contractor & Operator,0742,1500.00,Warwickshire Wildlife Trust,101860,08/05/2014,10201661
INSERTED DETAIL,Sustainable Environment ,Parks,PKS00,External Contractor & Operator,0742,500.00,Warwickshire Wildlife Trust (Rugby Area Group),101864,15/05/2014,10202143
INSERTED DETAIL,Resources & Corporate Governance ,Human Resources Centralised Services,RES31,Subscriptions,0421,1505.00,West Midlands Employers,101880,08/05/2014,10201747
INSERTED DETAIL,Resources & Corporate Governance ,General Financial Services,GFS00,Subscriptions,0421,4275.00,West Midlands Employers,101880,08/05/2014,10201772
INSERTED DETAIL,Resources & Corporate Governance ,Grounds Maintenance,WGM00,Training fees,0011,850.00,Warwickshire College,101882,08/05/2014,10201278
INSERTED DETAIL,Resources & Corporate Governance ,General Administration,WAD00,Training fees,0011,1500.00,Warwickshire College,101882,01/05/2014,10201295
INSERTED DETAIL,Resources & Corporate Governance ,Human Resources Centralised Services,RES31,Training fees,0011,1500.00,Warwickshire College,101882,01/05/2014,10201333
INSERTED DETAIL,Economy Development & Culture,Decrim. of Car Parking on street parking,DPE02,Payments to Other Local Authorities,0710,136429.00,Warwickshire County Council,101893,01/05/2014,10201268
INSERTED DETAIL,Resources & Corporate Governance ,Land Charges,LCH00,Payments to Other Local Authorities,0710,9612.60,Warwickshire County Council,101893,01/05/2014,10201316
INSERTED DETAIL,Sustainable Inclusive Communities,Housing Strategy & Enabling,HSE00,External Contractor & Operator,0742,7400.00,Actonenergy,101907,15/05/2014,10202134
INSERTED DETAIL,Resources & Corporate Governance,Housing Maintenance,WHM00,External Contractor & Operator,0742,1545.18,Adroit Services Ltd,101939,22/05/2014,10201887
INSERTED DETAIL,Capital Programme ,Bathroom Modifications,HIS01,Capital Contract Payments,5000,4799.54,Adroit Services Ltd,101939,15/05/2014,10202256
INSERTED DETAIL,Housing Revenue Account ,Unplanned Maintenance and Repair,UMR00,R&M External Contractors,0100,467.28,Adroit Services Ltd,101939,22/05/2014,10202340
INSERTED DETAIL,Capital Programme ,Bathroom Modifications,HIS01,Capital Contract Payments,5000,4799.54,Adroit Services Ltd,101939,22/05/2014,10202340
INSERTED DETAIL,Housing Revenue Account ,Unplanned Maintenance and Repair,UMR00,R&M External Contractors,0100,803.34,Adroit Services Ltd,101939,29/05/2014,10202615
INSERTED DETAIL,Capital Programme ,Bathroom Modifications,HIS01,Capital Contract Payments,5000,2399.77,Adroit Services Ltd,101939,29/05/2014,10202615
INSERTED DETAIL,Housing Revenue Account ,Unplanned Maintenance and Repair,UMR00,R&M External Contractors,0100,1071.14,Adroit Services Ltd,101939,29/05/2014,10202680
INSERTED DETAIL,Resources & Corporate Governance ,Grounds Maintenance,WGM00,Contract Hire,0220,616.50,TJS Self Drive Rugby,107992,15/05/2014,10201761
INSERTED DETAIL,Resources & Corporate Governance ,Council Tax and NNDR Collection,CTX01,Other,0763,1250.00,Nuneaton & Bedworth Borough Council,108060,22/05/2014,10202297
INSERTED DETAIL,Economy Development & Culture,Art Gallery and Museum,AGM00,Development Activities,0450,2000.00,Live & Local Ltd,108138,15/05/2014,10202031
INSERTED DETAIL,Resources & Corporate Governance ,Central Telephone Service,TEL00,Telephone Expenses,0371,1032.84,British Telecommunications PLC,108425,01/05/2014,10201273
INSERTED DETAIL,Resources & Corporate Governance ,Central Telephone Service,TEL00,Telephone Expenses,0371,1031.86,British Telecommunications PLC,108425,29/05/2014,10202573
INSERTED DETAIL,Resources & Corporate Governance,Central Business Support Services,CSS15,Stationery Supplies,0350,530.00,Bank Security Printing Ltd,108686,22/05/2014,10202338
INSERTED DETAIL,Sustainable Environment,Crematorium,CRM00,R&M External Contractors,0100,925.00,Dunchurch Surgery,108687,15/05/2014,10202043
INSERTED DETAIL,Resources & Corporate Governance ,Civic Responsibilities,CIV00,Special Events/Activities,0447,988.00,HIGHWAY TRAFFIC MANAGEMENT,109404,22/05/2014,10202325
INSERTED DETAIL,Sustainable Environment ,Burglary,CAD03,Development Activities,0450,1500.00,CSWP Ltd,109679,01/05/2014,10201195
INSERTED DETAIL,Resources & Corporate Governance ,Garage Internal,WVR01,Materials,0303,28038.84,Watson Petroleum,110361,01/05/2014,10201437
INSERTED DETAIL,Resources & Corporate Governance ,Garage Internal,WVR01,Materials,0303,25524.00,Watson Petroleum,110361,22/05/2014,10202317
INSERTED DETAIL,Resources & Corporate Governance,Corporate Property R&M,CPA01,R&M External Contractors,0100,818.33,Croxford Electrical Ltd,110451,29/05/2014,10202609
INSERTED DETAIL,Economy Development & Culture,Building Control Services,BCS00,Payments to Other Local Authorities,0710,2971.44,Warwick District Council,111228,01/05/2014,10201263
INSERTED DETAIL,Resources & Corporate Governance ,Warwickshire On Line Partnership,JCC10,Payments to Other Local Authorities,0710,1013.00,Warwick District Council,111228,01/05/2014,10201343
INSERTED DETAIL,Resources & Corporate Governance ,Warwickshire On Line Partnership,JCC10,Payments to Other Local Authorities,0710,1013.00,Warwick District Council,111228,15/05/2014,10201939
INSERTED DETAIL,Sustainable Environment,Crematorium,CRM00,Capital Contract Payments,5000,900.00,P D Timms,111508,29/05/2014,10202770
INSERTED DETAIL,Capital Programme ,Purchase of Vehicles,VHC00,Capital Contract Payments,5000,3190.00,Vision Techniques (UK) LTD,111526,01/05/2014,10200993
INSERTED DETAIL,Economy Development & Culture,The Benn Hall,BHL00,Hospitality,0331,2750.00,The Chefs Kitchen (UK) Limited,111682,15/05/2014,10201926
INSERTED DETAIL,Capital Programme ,Open Spaces Refurbishment,LEI08,Capital Contract Payments,5000,35689.75,Blakedown Landscapes,111940,15/05/2014,10202013
INSERTED DETAIL,Sustainable Inclusive Communities,Local Council Tax Support,HBA10,Software Maintenance,0374,30000.00,Civica UK Ltd,112724,15/05/2014,10200969
INSERTED DETAIL,Resources & Corporate Governance ,Maintenance of Customer Services Systems,CIS21,Software Maintenance,0374,2631.01,Civica UK Ltd,112724,08/05/2014,10201727
INSERTED DETAIL,Capital Programme ,Purchase of Vehicles,VHC00,Miscellaneous Capital Expenditure,5020,10089.00,Geo Browns Implements Ltd,112870,08/05/2014,10201353
INSERTED DETAIL,Capital Programme ,Purchase of Vehicles,VHC00,Miscellaneous Capital Expenditure,5020,21348.40,Geo Browns Implements Ltd,112870,08/05/2014,10201354
INSERTED DETAIL,Resources & Corporate Governance ,Grounds Maintenance,WGM00,Tools,0304,457.50,Geo Browns Implements Ltd,112870,08/05/2014,10201355
INSERTED DETAIL,Resources & Corporate Governance ,Grounds Maintenance,WGM00,Tools,0304,460.00,Geo Browns Implements Ltd,112870,29/05/2014,10202396
INSERTED DETAIL,Resources & Corporate Governance ,Borough Elections,ELC00,Maintenance of Equipment,0301,480.00,Mailopeners (UK) Ltd,113079,29/05/2014,10202562
INSERTED DETAIL,Economy Development & Culture,Decrim. of Car Parking on street parking,DPE02,Stationery Supplies,0350,680.40,Duraweld,113271,15/05/2014,10202099
INSERTED DETAIL,Resources & Corporate Governance ,Legal Services,DEM20,Ref. Books Journals & Magazines,0353,1980.00,Lexis Nexis Butterworths,114132,01/05/2014,10201320
INSERTED DETAIL,Sustainable Inclusive Communities,Housing Options Team,HOT00,Rents,0140,595.00,Diamond House Hotel,115070,15/05/2014,10201853
INSERTED DETAIL,Sustainable Inclusive Communities,Housing Options Team,HOT00,Rents,0140,490.00,Diamond House Hotel,115070,29/05/2014,10202685
INSERTED DETAIL,Resources & Corporate Governance ,Human Resources Centralised Services,RES31,Training fees,0011,860.68,OSTAS,117097,08/05/2014,10201654
INSERTED DETAIL,Resources & Corporate Governance,Corporate Property Central Utilities,CPA02,Electricity,0130,5273.59,Southern Electric,118976,01/05/2014,10200819
INSERTED DETAIL,Resources & Corporate Governance ,WSU Depot,WDP00,Electricity,0130,-136.76,Southern Electric,118976,01/05/2014,10200819
INSERTED DETAIL,Resources & Corporate Governance,Corporate Property Central Utilities,CPA02,Electricity,0130,3439.92,Southern Electric,118976,22/05/2014,10202054
INSERTED DETAIL,Resources & Corporate Governance ,WSU Depot,WDP00,Electricity,0130,695.01,Southern Electric,118976,22/05/2014,10202054
INSERTED DETAIL,Resources & Corporate Governance,Corporate Property Central Utilities,CPA02,Electricity,0130,7994.66,Southern Electric,118976,22/05/2014,10202261
INSERTED DETAIL,Sustainable Environment,Crematorium,CRM00,Electricity,0130,794.97,Southern Electric,118976,22/05/2014,10202261
INSERTED DETAIL,Sustainable Inclusive Communities,CL Grants,CGS00,Grants To Voluntary Organisations,0720,5500.00,Overslade Community Association,119698,15/05/2014,10202151
INSERTED DETAIL,Resources & Corporate Governance ,Toilet Cleaning,WBC01,Agency Staff,0003,547.00,G Staff,120173,01/05/2014,10201227
INSERTED DETAIL,Resources & Corporate Governance ,Street Cleansing,WSC00,Agency Staff,0003,457.56,G Staff,120173,01/05/2014,10201227
INSERTED DETAIL,Resources & Corporate Governance ,Domestic Waste Collection,WWC00,Agency Staff,0003,394.56,G Staff,120173,01/05/2014,10201227
INSERTED DETAIL,Resources & Corporate Governance ,Toilet Cleaning,WBC01,Agency Staff,0003,547.00,G Staff,120173,01/05/2014,10201381
INSERTED DETAIL,Resources & Corporate Governance ,Street Cleansing,WSC00,Agency Staff,0003,599.66,G Staff,120173,01/05/2014,10201381
INSERTED DETAIL,Resources & Corporate Governance ,Domestic Waste Collection,WWC00,Agency Staff,0003,1078.65,G Staff,120173,01/05/2014,10201381
INSERTED DETAIL,Resources & Corporate Governance ,Toilet Cleaning,WBC01,Agency Staff,0003,681.80,G Staff,120173,15/05/2014,10201706
INSERTED DETAIL,Resources & Corporate Governance ,Street Cleansing,WSC00,Agency Staff,0003,156.24,G Staff,120173,15/05/2014,10201706
INSERTED DETAIL,Resources & Corporate Governance ,Domestic Waste Collection,WWC00,Agency Staff,0003,1474.35,G Staff,120173,15/05/2014,10201706
INSERTED DETAIL,Resources & Corporate Governance ,Toilet Cleaning,WBC01,Agency Staff,0003,403.20,G Staff,120173,15/05/2014,10202074
INSERTED DETAIL,Resources & Corporate Governance ,Street Cleansing,WSC00,Agency Staff,0003,390.42,G Staff,120173,15/05/2014,10202074
INSERTED DETAIL,Resources & Corporate Governance ,Domestic Waste Collection,WWC00,Agency Staff,0003,899.27,G Staff,120173,15/05/2014,10202074
INSERTED DETAIL,Resources & Corporate Governance ,Toilet Cleaning,WBC01,Agency Staff,0003,681.80,G Staff,120173,22/05/2014,10202323
INSERTED DETAIL,Resources & Corporate Governance ,Street Cleansing,WSC00,Agency Staff,0003,438.51,G Staff,120173,22/05/2014,10202323
INSERTED DETAIL,Resources & Corporate Governance ,Domestic Waste Collection,WWC00,Agency Staff,0003,1379.98,G Staff,120173,22/05/2014,10202323
INSERTED DETAIL,Resources & Corporate Governance ,Human Resources Centralised Services,RES31,Training fees,0011,1260.15,Nelson Training,120218,22/05/2014,10202406
INSERTED DETAIL,Resources & Corporate Governance ,Members Expenses,MEM00,Conference & Seminar Fees,0401,466.67,Bournemouth Convention Bureau Ltd,120283,15/05/2014,10202083
INSERTED DETAIL,Sustainable Inclusive Communities,Housing Options Team,HOT00,Agency Staff,0003,952.00,Venn Group Recruitment Solutions,121594,15/05/2014,10201312
INSERTED DETAIL,Sustainable Inclusive Communities,Housing Options Team,HOT00,Agency Staff,0003,540.00,Venn Group Recruitment Solutions,121594,15/05/2014,10201313
INSERTED DETAIL,Sustainable Inclusive Communities,Housing Options Team,HOT00,Agency Staff,0003,540.00,Venn Group Recruitment Solutions,121594,15/05/2014,10201769
INSERTED DETAIL,Sustainable Inclusive Communities,Housing Options Team,HOT00,Agency Staff,0003,924.00,Venn Group Recruitment Solutions,121594,15/05/2014,10201770
INSERTED DETAIL,Sustainable Inclusive Communities,Housing Options Team,HOT00,Agency Staff,0003,666.00,Venn Group Recruitment Solutions,121594,15/05/2014,10202027
INSERTED DETAIL,Sustainable Inclusive Communities,Housing Options Team,HOT00,Agency Staff,0003,1092.00,Venn Group Recruitment Solutions,121594,15/05/2014,10202066
INSERTED DETAIL,Sustainable Inclusive Communities,Housing Options Team,HOT00,Agency Staff,0003,951.72,Venn Group Recruitment Solutions,121594,22/05/2014,10202294
INSERTED DETAIL,Sustainable Inclusive Communities,Housing Options Team,HOT00,Agency Staff,0003,540.00,Venn Group Recruitment Solutions,121594,22/05/2014,10202295
INSERTED DETAIL,Sustainable Inclusive Communities,Housing Options Team,HOT00,Agency Staff,0003,1092.00,Venn Group Recruitment Solutions,121594,29/05/2014,10202568
INSERTED DETAIL,Sustainable Inclusive Communities,Housing Options Team,HOT00,Agency Staff,0003,657.00,Venn Group Recruitment Solutions,121594,29/05/2014,10202569
INSERTED DETAIL,Capital Programme ,Housing Management System,HCE08,IT Capital Expenditure,5025,1000.00,Northgate Information Solutions UK Ltd,121606,15/05/2014,10201820
INSERTED DETAIL,Sustainable Environment ,Parks,PKS00,Other Insurance Excesses,0441,5000.00,Travelers Insurance Co,121642,08/05/2014,10201750
INSERTED DETAIL,Housing Revenue Account ,Property Maintenance,MAN23,Consultancy Costs,0740,618.90,HQN Limited,122890,08/05/2014,10201879
INSERTED DETAIL,Sustainable Environment,Regulatory Services,REG00,Maintenance of Equipment,0301,1360.00,Campbell Associates Ltd,122920,22/05/2014,10202198
INSERTED DETAIL,Resources & Corporate Governance ,Grounds Maintenance,WGM00,External Contractor & Operator,0742,895.00,Tayside Amenity Sprayers Limited,122930,29/05/2014,10202474
INSERTED DETAIL,Sustainable Environment ,Parks,PKS00,Maintenance of Equipment,0301,715.47,Proludic,123148,15/05/2014,10201629
INSERTED DETAIL,Resources & Corporate Governance ,Central Telephone Service,TEL00,Telephone Expenses,0371,1154.02,Cable & Wireless/T/A Vodafone,123224,15/05/2014,10202062
INSERTED DETAIL,Resources & Corporate Governance ,Grounds Maintenance,WGM00,Materials,0303,1114.00,Rigby Taylor Ltd,123342,15/05/2014,10201958
INSERTED DETAIL,Resources & Corporate Governance ,Grounds Maintenance,WGM00,Materials,0303,460.00,Rigby Taylor Ltd,123342,22/05/2014,10202395
INSERTED DETAIL,Resources & Corporate Governance ,Grounds Maintenance,WGM00,Tools,0304,450.00,Rigby Taylor Ltd,123342,22/05/2014,10202395
INSERTED DETAIL,Resources & Corporate Governance,Housing Maintenance,WHM00,External Contractor & Operator,0742,505.00,M P Hudson & Son,129334,08/05/2014,10201827
INSERTED DETAIL,Resources & Corporate Governance,Housing Maintenance,WHM00,External Contractor & Operator,0742,597.50,M P Hudson & Son,129334,15/05/2014,10202203
INSERTED DETAIL,Resources & Corporate Governance,Housing Maintenance,WHM00,External Contractor & Operator,0742,580.00,M P Hudson & Son,129334,29/05/2014,10202456
INSERTED DETAIL,Sustainable Environment ,Parks,PKS00,Maintenance of Equipment,0301,4200.00,I D Welding & Fabrications,131407,29/05/2014,10202397
INSERTED DETAIL,Capital Programme ,Open Spaces Refurbishment,LEI08,Capital Contract Payments,5000,1096.00,I D Welding & Fabrications,131407,29/05/2014,10202398
INSERTED DETAIL,Capital Programme ,Open Spaces Refurbishment,LEI08,Capital Contract Payments,5000,58897.00,Sutcliffe Play Ltd,131511,08/05/2014,10198835
INSERTED DETAIL,Sustainable Environment ,Parks,PKS00,Maintenance of Equipment,0301,630.00,Sutcliffe Play Ltd,131511,08/05/2014,10201642
INSERTED DETAIL,Sustainable Environment,Regulatory Services,REG00,External Contractor & Operator,0742,750.00,Aecom Ltd,131603,29/05/2014,10202692
INSERTED DETAIL,Economy Development & Culture,Decrim. of Car Parking on street parking,DPE02,Cash Collection,0744,591.84,Jade Security Services Ltd,131711,15/05/2014,10202005
INSERTED DETAIL,Capital Programme ,Disabled Facilities Grant,REN01,Capital Grants,5014,11074.00,D K Builders,131946,29/05/2014,10202560
INSERTED DETAIL,Capital Programme ,Disabled Facilities Grant,REN01,Capital Grants,5014,4588.00,D K Builders,131946,29/05/2014,10202688
INSERTED DETAIL,Housing Revenue Account ,Unplanned Maintenance and Repair,UMR00,R&M External Contractors,0100,780.47,Wilson Electrics,132051,15/05/2014,10202049
INSERTED DETAIL,Housing Revenue Account ,Unplanned Maintenance and Repair,UMR00,R&M External Contractors,0100,487.35,Wilson Electrics,132051,22/05/2014,10202358
INSERTED DETAIL,Economy Development & Culture,Economic Development General,ECD00,Development Activities,0450,15000.00,Rugby First Ltd - BID,133176,15/05/2014,10202022
INSERTED DETAIL,Economy Development & Culture,Town Centre CCTV and Management,TVM00,Other Agencies,0734,20739.58,Rugby First Ltd - BID,133176,22/05/2014,10202260
INSERTED DETAIL,Sustainable Inclusive Communities,Housing Options Team,HOT00,Agency Staff,0003,876.52,Community Resourcing,133778,15/05/2014,10201317
INSERTED DETAIL,Sustainable Inclusive Communities,Housing Options Team,HOT00,Agency Staff,0003,882.97,Community Resourcing,133778,15/05/2014,10201767
INSERTED DETAIL,Sustainable Inclusive Communities,Housing Options Team,HOT00,Agency Staff,0003,895.86,Community Resourcing,133778,15/05/2014,10201927
INSERTED DETAIL,Sustainable Inclusive Communities,Housing Options Team,HOT00,Agency Staff,0003,915.19,Community Resourcing,133778,22/05/2014,10202291
INSERTED DETAIL,Sustainable Inclusive Communities,Housing Options Team,HOT00,Agency Staff,0003,1082.76,Community Resourcing,133778,29/05/2014,10202570
INSERTED DETAIL,Housing Revenue Account ,Unplanned Maintenance and Repair,UMR00,R&M External Contractors,0100,2209.23,Sunfish Services Ltd,133886,22/05/2014,10202359
INSERTED DETAIL,Capital Programme ,Fire Risk Prevention Works,HCE18,Capital Contract Payments,5000,1937.72,Sunfish Services Ltd,133886,22/05/2014,10202359
INSERTED DETAIL,Housing Revenue Account ,Sheltered Housing,AGP00,Other Miscellaneous Expenses,0444,15770.00,Midland Heart Ltd,134018,15/05/2014,10202237
INSERTED DETAIL,Resources & Corporate Governance ,"Communications, Consultation and Information Team",BTR20,Consultation,0378,2000.00,Warwickshire Racial Equality Partnership,134811,08/05/2014,10201637
INSERTED DETAIL,Resources & Corporate Governance ,Garage Internal,WVR01,Materials,0303,957.20,Brenntag UK Limited,135098,22/05/2014,10202487
INSERTED DETAIL,Resources & Corporate Governance ,Domestic Waste Collection,WWC00,Vehicle Repair and Maintenance,0200,779.10,Heil Farid European Company Ltd,137390,22/05/2014,10202170
INSERTED DETAIL,Resources & Corporate Governance ,Domestic Waste Collection,WWC00,Vehicle Repair and Maintenance,0200,504.32,Heil Farid European Company Ltd,137390,29/05/2014,10202481
INSERTED DETAIL,Resources & Corporate Governance ,European Elections,ELC04,External Printing,0352,1251.63,Smith & Ouzman Ltd,138682,29/05/2014,10202167
INSERTED DETAIL,Housing Revenue Account ,Unplanned Maintenance and Repair,UMR00,R&M External Contractors,0100,1690.00,Rider Levett Bucknall UK Ltd,139918,29/05/2014,10202616
INSERTED DETAIL,Resources & Corporate Governance ,Grounds Maintenance,WGM00,External Contractor & Operator,0742,1280.00,D J Whitlock Plant Hire,140156,22/05/2014,10202304
INSERTED DETAIL,Resources & Corporate Governance ,Grounds Maintenance,WGM00,External Contractor & Operator,0742,1280.00,D J Whitlock Plant Hire,140156,22/05/2014,10202305
INSERTED DETAIL,Resources & Corporate Governance ,Domestic Waste Collection,WWC00,Vehicle Repair and Maintenance,0200,851.13,Midlands Truck & Van Ltd,140322,15/05/2014,10202079
INSERTED DETAIL,Capital Programme ,Crematorium Project,BUR04,Telephone Expenses,0371,56.31,Zen Internet Ltd,141612,01/05/2014,10201277
INSERTED DETAIL,Housing Revenue Account ,Control Centre (HRA),CCE00,Telephone Expenses,0371,21.27,Zen Internet Ltd,141612,01/05/2014,10201277
INSERTED DETAIL,Resources & Corporate Governance ,Customer and Information Strategy,CIS10,Telephone Expenses,0371,859.35,Zen Internet Ltd,141612,01/05/2014,10201277
INSERTED DETAIL,Economy Development & Culture,Car Parks General,CPK01,Telephone Expenses,0371,4.25,Zen Internet Ltd,141612,01/05/2014,10201277
INSERTED DETAIL,Economy Development & Culture,Decrim. of Car Parking on street parking,DPE02,Telephone Expenses,0371,17.02,Zen Internet Ltd,141612,01/05/2014,10201277
INSERTED DETAIL,Resources & Corporate Governance ,Customer and Information Strategy,CIS10,Telephone Expenses,0371,880.62,Zen Internet Ltd,141612,15/05/2014,10201735
INSERTED DETAIL,Resources & Corporate Governance ,Council Tax and NNDR Collection,CTX01,Telephone Expenses,0371,21.27,Zen Internet Ltd,141612,15/05/2014,10201735
INSERTED DETAIL,Sustainable Inclusive Communities,Housing Benefit Administration,HBA00,Telephone Expenses,0371,30.62,Zen Internet Ltd,141612,15/05/2014,10201735
INSERTED DETAIL,Housing Revenue Account ,Gas Heating Systems,UMR01,R&M External Contractors,0100,780.00,Ascertiva Group Ltd,142076,22/05/2014,10202443
INSERTED DETAIL,Sustainable Environment ,Parks,PKS00,R&M External Contractors,0100,1035.00,Fountains Direct Limited,144391,08/05/2014,10201793
INSERTED DETAIL,Resources & Corporate Governance ,Garage Internal,WVR01,Materials,0303,2508.15,FST,144461,08/05/2014,10201794
INSERTED DETAIL,Resources & Corporate Governance ,General Financial Services,GFS00,External Contractor & Operator,0742,676.05,Local Government Association,144471,01/05/2014,10201259
INSERTED DETAIL,Housing Revenue Account ,Control Centre CCTV,CCE01,External Contractor & Operator,0742,15574.92,Securitas Security Personnel Ltd,145079,01/05/2014,10201397
INSERTED DETAIL,Housing Revenue Account ,Control Centre CCTV,CCE01,External Contractor & Operator,0742,15574.92,Securitas Security Personnel Ltd,145079,29/05/2014,10202607
INSERTED DETAIL,Resources & Corporate Governance ,Grounds Maintenance,WGM00,Agency Staff,0003,264.32,Blue Arrow Limited,145492,08/05/2014,10201535
INSERTED DETAIL,Resources & Corporate Governance,Housing Maintenance,WHM00,Agency Staff,0003,1694.41,Blue Arrow Limited,145492,08/05/2014,10201535
INSERTED DETAIL,Resources & Corporate Governance ,Street Cleansing,WSC00,Agency Staff,0003,1287.66,Blue Arrow Limited,145492,08/05/2014,10201535
INSERTED DETAIL,Resources & Corporate Governance ,Domestic Waste Collection,WWC00,Agency Staff,0003,1625.10,Blue Arrow Limited,145492,08/05/2014,10201535
INSERTED DETAIL,Resources & Corporate Governance ,Grounds Maintenance,WGM00,Agency Staff,0003,258.13,Blue Arrow Limited,145492,01/05/2014,10201576
INSERTED DETAIL,Resources & Corporate Governance,Housing Maintenance,WHM00,Agency Staff,0003,1808.50,Blue Arrow Limited,145492,01/05/2014,10201576
INSERTED DETAIL,Resources & Corporate Governance ,Street Cleansing,WSC00,Agency Staff,0003,530.92,Blue Arrow Limited,145492,01/05/2014,10201576
INSERTED DETAIL,Resources & Corporate Governance ,Domestic Waste Collection,WWC00,Agency Staff,0003,2262.41,Blue Arrow Limited,145492,01/05/2014,10201576
INSERTED DETAIL,Resources & Corporate Governance ,Trade Waste Collection,WWC01,Agency Staff,0003,509.85,Blue Arrow Limited,145492,01/05/2014,10201576
INSERTED DETAIL,Resources & Corporate Governance ,Grounds Maintenance,WGM00,Agency Staff,0003,198.24,Blue Arrow Limited,145492,15/05/2014,10201700
INSERTED DETAIL,Resources & Corporate Governance,Housing Maintenance,WHM00,Agency Staff,0003,1515.10,Blue Arrow Limited,145492,15/05/2014,10201700
INSERTED DETAIL,Resources & Corporate Governance ,Street Cleansing,WSC00,Agency Staff,0003,865.58,Blue Arrow Limited,145492,15/05/2014,10201700
INSERTED DETAIL,Resources & Corporate Governance ,Domestic Waste Collection,WWC00,Agency Staff,0003,2616.93,Blue Arrow Limited,145492,15/05/2014,10201700
INSERTED DETAIL,Resources & Corporate Governance ,Grounds Maintenance,WGM00,Agency Staff,0003,305.62,Blue Arrow Limited,145492,22/05/2014,10202172
INSERTED DETAIL,Resources & Corporate Governance,Housing Maintenance,WHM00,Agency Staff,0003,1670.13,Blue Arrow Limited,145492,22/05/2014,10202172
INSERTED DETAIL,Resources & Corporate Governance ,Street Cleansing,WSC00,Agency Staff,0003,377.77,Blue Arrow Limited,145492,22/05/2014,10202172
INSERTED DETAIL,Resources & Corporate Governance ,Domestic Waste Collection,WWC00,Agency Staff,0003,2396.68,Blue Arrow Limited,145492,22/05/2014,10202172
INSERTED DETAIL,Resources & Corporate Governance,Corporate Property R&M,CPA01,R&M External Contractors,0100,571.51,EH Services,145677,08/05/2014,10201791
INSERTED DETAIL,Resources & Corporate Governance ,Highways,WHG00,Materials,0303,493.10,Midland Rock Leicester Ltd,145830,29/05/2014,10202199
INSERTED DETAIL,Sustainable Inclusive Communities,Housing Options Team,HOT00,Training fees,0011,539.50,G Wardle,145958,15/05/2014,10201408
INSERTED DETAIL,Capital Programme ,Disabled Facilities Grant,REN01,Capital Grants,5014,8500.00,Inhouse Renovations,145963,01/05/2014,10201347
INSERTED DETAIL,,Balance Sheet,BS,Car Loan Scheme,9261,11000.00,Allen Ford Rugby,146302,15/05/2014,10202202
INSERTED DETAIL,Resources & Corporate Governance,Housing Maintenance,WHM00,External Contractor & Operator,0742,626.00,Mick Brown Plastering,146699,01/05/2014,10200698
INSERTED DETAIL,Resources & Corporate Governance,Housing Maintenance,WHM00,External Contractor & Operator,0742,471.00,Mick Brown Plastering,146699,15/05/2014,10202116
INSERTED DETAIL,,Balance Sheet,BS,Car Loan Scheme,9261,3275.00,Trader Coventry Ltd,146716,29/05/2014,10202676
INSERTED DETAIL,Resources & Corporate Governance ,Domestic Waste Collection,WWC00,Agency Staff,0003,497.11,Fresh Recruitment Solutions (FRS) Ltd,146784,08/05/2014,10201513
INSERTED DETAIL,Resources & Corporate Governance ,Domestic Waste Collection,WWC00,Agency Staff,0003,503.90,Fresh Recruitment Solutions (FRS) Ltd,146784,15/05/2014,10201695
INSERTED DETAIL,Resources & Corporate Governance ,Domestic Waste Collection,WWC00,Agency Staff,0003,503.90,Fresh Recruitment Solutions (FRS) Ltd,146784,15/05/2014,10201696
INSERTED DETAIL,Resources & Corporate Governance ,Retired Employees,RET00,Additional Pension Payments,0014,11336.31,WCC Pension Fund,146914,22/05/2014,10202287
INSERTED DETAIL,Economy Development & Culture,Art Gallery and Museum,AGM00,Postage & Distribution,0370,184.25,TNT Post Midlands Ltd,146983,01/05/2014,10201032
INSERTED DETAIL,Economy Development & Culture,Building Control Services,BCS00,Postage & Distribution,0370,0.65,TNT Post Midlands Ltd,146983,01/05/2014,10201032
INSERTED DETAIL,Economy Development & Culture,Building Control Services Non-Fee Earning Account,BCS01,Postage & Distribution,0370,0.65,TNT Post Midlands Ltd,146983,01/05/2014,10201032
INSERTED DETAIL,Economy Development & Culture,Building Regulation Fee Earning Account,BCS99,Postage & Distribution,0370,11.76,TNT Post Midlands Ltd,146983,01/05/2014,10201032
INSERTED DETAIL,Resources & Corporate Governance,Central Business Support Services,CSS15,Postage & Distribution,0370,70.89,TNT Post Midlands Ltd,146983,01/05/2014,10201032
INSERTED DETAIL,Resources & Corporate Governance ,Council Tax and NNDR Collection,CTX01,Postage & Distribution,0370,365.76,TNT Post Midlands Ltd,146983,01/05/2014,10201032
INSERTED DETAIL,Resources & Corporate Governance ,Electoral Registration,ERG00,Postage & Distribution,0370,152.28,TNT Post Midlands Ltd,146983,01/05/2014,10201032
INSERTED DETAIL,Sustainable Inclusive Communities,Housing Benefit Administration,HBA00,Postage & Distribution,0370,196.63,TNT Post Midlands Ltd,146983,01/05/2014,10201032
INSERTED DETAIL,Housing Revenue Account ,Supervision and Management General,MAN00,Postage & Distribution,0370,133.11,TNT Post Midlands Ltd,146983,01/05/2014,10201032
INSERTED DETAIL,Economy Development & Culture,Visitor Centre,VSC00,Postage & Distribution,0370,3.09,TNT Post Midlands Ltd,146983,01/05/2014,10201032
INSERTED DETAIL,Resources & Corporate Governance ,General Administration,WAD00,Postage & Distribution,0370,6.12,TNT Post Midlands Ltd,146983,01/05/2014,10201032
INSERTED DETAIL,Economy Development & Culture,Art Gallery and Museum,AGM00,Postage & Distribution,0370,9.82,TNT Post Midlands Ltd,146983,08/05/2014,10201342
INSERTED DETAIL,Economy Development & Culture,Building Control Services,BCS00,Postage & Distribution,0370,0.82,TNT Post Midlands Ltd,146983,08/05/2014,10201342
INSERTED DETAIL,Economy Development & Culture,Building Control Services Non-Fee Earning Account,BCS01,Postage & Distribution,0370,0.82,TNT Post Midlands Ltd,146983,08/05/2014,10201342
INSERTED DETAIL,Economy Development & Culture,Building Regulation Fee Earning Account,BCS99,Postage & Distribution,0370,14.70,TNT Post Midlands Ltd,146983,08/05/2014,10201342
INSERTED DETAIL,Resources & Corporate Governance,Central Business Support Services,CSS15,Postage & Distribution,0370,520.95,TNT Post Midlands Ltd,146983,08/05/2014,10201342
INSERTED DETAIL,Resources & Corporate Governance ,Council Tax and NNDR Collection,CTX01,Postage & Distribution,0370,336.69,TNT Post Midlands Ltd,146983,08/05/2014,10201342
INSERTED DETAIL,Resources & Corporate Governance ,Electoral Registration,ERG00,Postage & Distribution,0370,153.45,TNT Post Midlands Ltd,146983,08/05/2014,10201342
INSERTED DETAIL,Sustainable Inclusive Communities,Housing Benefit Administration,HBA00,Postage & Distribution,0370,187.01,TNT Post Midlands Ltd,146983,08/05/2014,10201342
INSERTED DETAIL,Housing Revenue Account ,Supervision and Management General,MAN00,Postage & Distribution,0370,74.88,TNT Post Midlands Ltd,146983,08/05/2014,10201342
INSERTED DETAIL,Resources & Corporate Governance ,General Administration,WAD00,Postage & Distribution,0370,7.86,TNT Post Midlands Ltd,146983,08/05/2014,10201342
INSERTED DETAIL,Economy Development & Culture,Building Control Services,BCS00,Postage & Distribution,0370,1.10,TNT Post Midlands Ltd,146983,15/05/2014,10201412
INSERTED DETAIL,Economy Development & Culture,Building Control Services Non-Fee Earning Account,BCS01,Postage & Distribution,0370,1.10,TNT Post Midlands Ltd,146983,15/05/2014,10201412
INSERTED DETAIL,Economy Development & Culture,Building Regulation Fee Earning Account,BCS99,Postage & Distribution,0370,19.80,TNT Post Midlands Ltd,146983,15/05/2014,10201412
INSERTED DETAIL,Resources & Corporate Governance,Central Business Support Services,CSS15,Postage & Distribution,0370,26.12,TNT Post Midlands Ltd,146983,15/05/2014,10201412
INSERTED DETAIL,Resources & Corporate Governance ,Council Tax and NNDR Collection,CTX01,Postage & Distribution,0370,246.63,TNT Post Midlands Ltd,146983,15/05/2014,10201412
INSERTED DETAIL,Resources & Corporate Governance ,Electoral Registration,ERG00,Postage & Distribution,0370,23.60,TNT Post Midlands Ltd,146983,15/05/2014,10201412
INSERTED DETAIL,Sustainable Inclusive Communities,Housing Benefit Administration,HBA00,Postage & Distribution,0370,145.59,TNT Post Midlands Ltd,146983,15/05/2014,10201412
INSERTED DETAIL,Housing Revenue Account ,Supervision and Management General,MAN00,Postage & Distribution,0370,1504.25,TNT Post Midlands Ltd,146983,15/05/2014,10201412
INSERTED DETAIL,Economy Development & Culture,Visitor Centre,VSC00,Postage & Distribution,0370,1.66,TNT Post Midlands Ltd,146983,15/05/2014,10201412
INSERTED DETAIL,Resources & Corporate Governance ,General Administration,WAD00,Postage & Distribution,0370,2.33,TNT Post Midlands Ltd,146983,15/05/2014,10201412
INSERTED DETAIL,Economy Development & Culture,Building Control Services,BCS00,Postage & Distribution,0370,0.29,TNT Post Midlands Ltd,146983,15/05/2014,10201851
INSERTED DETAIL,Economy Development & Culture,Building Control Services Non-Fee Earning Account,BCS01,Postage & Distribution,0370,0.29,TNT Post Midlands Ltd,146983,15/05/2014,10201851
INSERTED DETAIL,Economy Development & Culture,Building Regulation Fee Earning Account,BCS99,Postage & Distribution,0370,5.14,TNT Post Midlands Ltd,146983,15/05/2014,10201851
INSERTED DETAIL,Resources & Corporate Governance,Central Business Support Services,CSS15,Postage & Distribution,0370,110.46,TNT Post Midlands Ltd,146983,15/05/2014,10201851
INSERTED DETAIL,Resources & Corporate Governance ,Council Tax and NNDR Collection,CTX01,Postage & Distribution,0370,139.36,TNT Post Midlands Ltd,146983,15/05/2014,10201851
INSERTED DETAIL,Resources & Corporate Governance ,Electoral Registration,ERG00,Postage & Distribution,0370,156.57,TNT Post Midlands Ltd,146983,15/05/2014,10201851
INSERTED DETAIL,Sustainable Inclusive Communities,Housing Benefit Administration,HBA00,Postage & Distribution,0370,138.06,TNT Post Midlands Ltd,146983,15/05/2014,10201851
INSERTED DETAIL,Housing Revenue Account ,Supervision and Management General,MAN00,Postage & Distribution,0370,226.35,TNT Post Midlands Ltd,146983,15/05/2014,10201851
INSERTED DETAIL,Resources & Corporate Governance ,General Administration,WAD00,Postage & Distribution,0370,11.30,TNT Post Midlands Ltd,146983,15/05/2014,10201851
INSERTED DETAIL,Economy Development & Culture,Building Control Services,BCS00,Postage & Distribution,0370,0.67,TNT Post Midlands Ltd,146983,22/05/2014,10202030
INSERTED DETAIL,Economy Development & Culture,Building Control Services Non-Fee Earning Account,BCS01,Postage & Distribution,0370,0.67,TNT Post Midlands Ltd,146983,22/05/2014,10202030
INSERTED DETAIL,Economy Development & Culture,Building Regulation Fee Earning Account,BCS99,Postage & Distribution,0370,12.04,TNT Post Midlands Ltd,146983,22/05/2014,10202030
INSERTED DETAIL,Resources & Corporate Governance,Central Business Support Services,CSS15,Postage & Distribution,0370,51.98,TNT Post Midlands Ltd,146983,22/05/2014,10202030
INSERTED DETAIL,Resources & Corporate Governance ,Council Tax and NNDR Collection,CTX01,Postage & Distribution,0370,343.85,TNT Post Midlands Ltd,146983,22/05/2014,10202030
INSERTED DETAIL,Resources & Corporate Governance ,Electoral Registration,ERG00,Postage & Distribution,0370,172.93,TNT Post Midlands Ltd,146983,22/05/2014,10202030
INSERTED DETAIL,Sustainable Inclusive Communities,Housing Benefit Administration,HBA00,Postage & Distribution,0370,170.59,TNT Post Midlands Ltd,146983,22/05/2014,10202030
INSERTED DETAIL,Housing Revenue Account ,Supervision and Management General,MAN00,Postage & Distribution,0370,113.39,TNT Post Midlands Ltd,146983,22/05/2014,10202030
INSERTED DETAIL,Resources & Corporate Governance ,General Administration,WAD00,Postage & Distribution,0370,11.71,TNT Post Midlands Ltd,146983,22/05/2014,10202030
INSERTED DETAIL,Economy Development & Culture,Building Control Services,BCS00,Postage & Distribution,0370,0.37,TNT Post Midlands Ltd,146983,29/05/2014,10202255
INSERTED DETAIL,Economy Development & Culture,Building Control Services Non-Fee Earning Account,BCS01,Postage & Distribution,0370,0.37,TNT Post Midlands Ltd,146983,29/05/2014,10202255
INSERTED DETAIL,Economy Development & Culture,Building Regulation Fee Earning Account,BCS99,Postage & Distribution,0370,6.69,TNT Post Midlands Ltd,146983,29/05/2014,10202255
INSERTED DETAIL,Resources & Corporate Governance,Central Business Support Services,CSS15,Postage & Distribution,0370,91.46,TNT Post Midlands Ltd,146983,29/05/2014,10202255
INSERTED DETAIL,Resources & Corporate Governance ,Council Tax and NNDR Collection,CTX01,Postage & Distribution,0370,223.85,TNT Post Midlands Ltd,146983,29/05/2014,10202255
INSERTED DETAIL,Resources & Corporate Governance ,Electoral Registration,ERG00,Postage & Distribution,0370,134.31,TNT Post Midlands Ltd,146983,29/05/2014,10202255
INSERTED DETAIL,Sustainable Inclusive Communities,Housing Benefit Administration,HBA00,Postage & Distribution,0370,182.73,TNT Post Midlands Ltd,146983,29/05/2014,10202255
INSERTED DETAIL,Housing Revenue Account ,Supervision and Management General,MAN00,Postage & Distribution,0370,46.96,TNT Post Midlands Ltd,146983,29/05/2014,10202255
INSERTED DETAIL,Economy Development & Culture,Visitor Centre,VSC00,Postage & Distribution,0370,229.15,TNT Post Midlands Ltd,146983,29/05/2014,10202255
INSERTED DETAIL,Resources & Corporate Governance ,General Administration,WAD00,Postage & Distribution,0370,10.21,TNT Post Midlands Ltd,146983,29/05/2014,10202255
INSERTED DETAIL,Resources & Corporate Governance,Housing Maintenance,WHM00,External Contractor & Operator,0742,3238.15,Intelligent Disabled Solutions Ltd,147081,01/05/2014,10201414
INSERTED DETAIL,Resources & Corporate Governance,Housing Maintenance,WHM00,External Contractor & Operator,0742,1736.52,Intelligent Disabled Solutions Ltd,147081,08/05/2014,10201415
INSERTED DETAIL,Resources & Corporate Governance,Housing Maintenance,WHM00,External Contractor & Operator,0742,3035.34,Intelligent Disabled Solutions Ltd,147081,29/05/2014,10202467
INSERTED DETAIL,Resources & Corporate Governance,Corporate Property R&M,CPA01,R&M External Contractors,0100,895.00,Premier Technical Services Group Ltd,147094,29/05/2014,10202409
INSERTED DETAIL,Resources & Corporate Governance,Housing Maintenance,WHM00,External Contractor & Operator,0742,1345.00,K A Cooke Limited,147120,01/05/2014,10201417
INSERTED DETAIL,Resources & Corporate Governance,Housing Maintenance,WHM00,External Contractor & Operator,0742,655.00,K A Cooke Limited,147120,01/05/2014,10201418
INSERTED DETAIL,Resources & Corporate Governance,Housing Maintenance,WHM00,External Contractor & Operator,0742,1205.00,K A Cooke Limited,147120,01/05/2014,10201422
INSERTED DETAIL,Resources & Corporate Governance,Housing Maintenance,WHM00,External Contractor & Operator,0742,3145.00,K A Cooke Limited,147120,01/05/2014,10201423
INSERTED DETAIL,Resources & Corporate Governance,Housing Maintenance,WHM00,External Contractor & Operator,0742,2500.00,K A Cooke Limited,147120,01/05/2014,10201424
INSERTED DETAIL,Resources & Corporate Governance,Housing Maintenance,WHM00,External Contractor & Operator,0742,2435.00,K A Cooke Limited,147120,01/05/2014,10201425
INSERTED DETAIL,Resources & Corporate Governance,Housing Maintenance,WHM00,External Contractor & Operator,0742,2925.00,K A Cooke Limited,147120,01/05/2014,10201426
INSERTED DETAIL,Resources & Corporate Governance,Housing Maintenance,WHM00,External Contractor & Operator,0742,2000.00,K A Cooke Limited,147120,15/05/2014,10201896
INSERTED DETAIL,Resources & Corporate Governance,Housing Maintenance,WHM00,External Contractor & Operator,0742,5000.00,K A Cooke Limited,147120,15/05/2014,10201897
INSERTED DETAIL,Resources & Corporate Governance ,Domestic Waste Collection,WWC00,External Contractor & Operator,0742,450.00,James Baxter Haulage Ltd,147159,01/05/2014,10201158
INSERTED DETAIL,Resources & Corporate Governance ,Domestic Waste Collection,WWC00,External Contractor & Operator,0742,1050.00,James Baxter Haulage Ltd,147159,08/05/2014,10201771
INSERTED DETAIL,Resources & Corporate Governance ,Domestic Waste Collection,WWC00,External Contractor & Operator,0742,600.00,James Baxter Haulage Ltd,147159,15/05/2014,10202067
INSERTED DETAIL,Resources & Corporate Governance ,Domestic Waste Collection,WWC00,External Contractor & Operator,0742,750.00,James Baxter Haulage Ltd,147159,22/05/2014,10202132
INSERTED DETAIL,Resources & Corporate Governance ,Domestic Waste Collection,WWC00,External Contractor & Operator,0742,450.00,James Baxter Haulage Ltd,147159,29/05/2014,10202454
INSERTED DETAIL,Resources & Corporate Governance ,Mayoral Services,MAY00,Vehicle Running Costs,0201,623.31,Rybrook Ltd,147178,15/05/2014,10202002
INSERTED DETAIL,Resources & Corporate Governance ,Human Resources Centralised Services,RES31,Training fees,0011,3492.00,Globe Training,147192,08/05/2014,10201663
INSERTED DETAIL,Resources & Corporate Governance,Housing Maintenance,WHM00,External Contractor & Operator,0742,3600.00,C H Electrical (Leics) Ltd,147209,01/05/2014,10201563
INSERTED DETAIL,Resources & Corporate Governance,Housing Maintenance,WHM00,Materials,0303,579.98,ECA Supplies (Coventry) Limited,147276,29/05/2014,10201866
INSERTED DETAIL,Resources & Corporate Governance ,Domestic Waste Collection,WWC00,Contract Hire,0220,1140.00,Trash UK Limited,147379,15/05/2014,10202081
INSERTED DETAIL,Resources & Corporate Governance ,Domestic Waste Collection,WWC00,Contract Hire,0220,1075.00,Trash UK Limited,147379,15/05/2014,10202267
INSERTED DETAIL,Resources & Corporate Governance ,Domestic Waste Collection,WWC00,Contract Hire,0220,550.00,Trash UK Limited,147379,22/05/2014,10202302
INSERTED DETAIL,Housing Revenue Account ,Unplanned Maintenance and Repair,UMR00,R&M External Contractors,0100,420.00,Howard Ward Associates LLP,147433,08/05/2014,10201723
INSERTED DETAIL,Housing Revenue Account ,Unplanned Maintenance and Repair,UMR00,R&M External Contractors,0100,525.00,Howard Ward Associates LLP,147433,08/05/2014,10201724
INSERTED DETAIL,Resources & Corporate Governance ,IT Procurement,CMP00,IT Capital Expenditure,5025,772.00,Commercial IT Services Ltd,147434,01/05/2014,10201369
INSERTED DETAIL,Resources & Corporate Governance ,Customer and Information Strategy,CIS10,Hardware Maintenance,0376,2625.00,Commercial IT Services Ltd,147434,29/05/2014,10201370
INSERTED DETAIL,Economy Development & Culture,The Benn Hall,BHL00,External Contractor & Operator,0742,783.40,Hygienic Concepts,147630,22/05/2014,10202343
INSERTED DETAIL,Resources & Corporate Governance ,Grounds Maintenance,WGM00,Vehicle Repair and Maintenance,0200,1370.89,Tallis Amos Group Limited,147758,22/05/2014,10201947
INSERTED DETAIL,Resources & Corporate Governance,Housing Maintenance,WHM00,External Contractor & Operator,0742,506.40,Coventry Garage Doors,147883,15/05/2014,10201507
INSERTED DETAIL,Resources & Corporate Governance,Housing Maintenance,WHM00,External Contractor & Operator,0742,506.40,Coventry Garage Doors,147883,15/05/2014,10201508
INSERTED DETAIL,Resources & Corporate Governance,Housing Maintenance,WHM00,Materials,0303,506.40,Coventry Garage Doors,147883,15/05/2014,10201738
INSERTED DETAIL,Resources & Corporate Governance,Housing Maintenance,WHM00,External Contractor & Operator,0742,506.40,Coventry Garage Doors,147883,15/05/2014,10201888
INSERTED DETAIL,Resources & Corporate Governance,Housing Maintenance,WHM00,External Contractor & Operator,0742,506.40,Coventry Garage Doors,147883,29/05/2014,10202129
INSERTED DETAIL,Resources & Corporate Governance,Housing Maintenance,WHM00,External Contractor & Operator,0742,506.40,Coventry Garage Doors,147883,29/05/2014,10202130
INSERTED DETAIL,Resources & Corporate Governance,Housing Maintenance,WHM00,External Contractor & Operator,0742,506.40,Coventry Garage Doors,147883,22/05/2014,10202281
INSERTED DETAIL,Economy Development & Culture,Street Furniture,HIG01,Other Miscellaneous Expenses,0444,1044.00,Traffic Technology Ltd,147941,22/05/2014,10202471
INSERTED DETAIL,Capital Programme ,Queen's Diamond Jubilee Leisure Centre Project,LEI03,Capital Contract Payments,5000,40970.79,Shepherd Construction Ltd,148014,22/05/2014,10202057
INSERTED DETAIL,Resources & Corporate Governance ,TREE WORKS,WGM01,Vehicle Repair and Maintenance,0200,107.42,Buxtons Limited,148015,08/05/2014,10201137
INSERTED DETAIL,Resources & Corporate Governance ,TREE WORKS,WGM01,Maintenance of Equipment,0301,392.50,Buxtons Limited,148015,08/05/2014,10201137
INSERTED DETAIL,Resources & Corporate Governance ,TREE WORKS,WGM01,Materials,0303,10.00,Buxtons Limited,148015,08/05/2014,10201137
INSERTED DETAIL,Resources & Corporate Governance ,TREE WORKS,WGM01,Tools,0304,58.03,Buxtons Limited,148015,08/05/2014,10201137
INSERTED DETAIL,Resources & Corporate Governance ,TREE WORKS,WGM01,Personal Protective Clothing,0340,7.00,Buxtons Limited,148015,08/05/2014,10201137
INSERTED DETAIL,Resources & Corporate Governance,Housing Maintenance,WHM00,External Contractor & Operator,0742,502.50,Dean Hudson,148035,08/05/2014,10201826
INSERTED DETAIL,Resources & Corporate Governance,Housing Maintenance,WHM00,External Contractor & Operator,0742,570.00,Dean Hudson,148035,29/05/2014,10202457
INSERTED DETAIL,Resources & Corporate Governance ,Customer and Information Strategy,CIS10,Software Maintenance,0374,520.00,NSC Legacydata Solutions Ltd,148083,22/05/2014,10202415
INSERTED DETAIL,Sustainable Environment,Crematorium,CRM00,New Equipment,0300,3797.00,Reactec Ltd,148291,15/05/2014,10201825
INSERTED DETAIL,Resources & Corporate Governance ,Grounds Maintenance,WGM00,Materials,0303,3775.00,Reactec Ltd,148291,15/05/2014,10201825
INSERTED DETAIL,Resources & Corporate Governance ,General Administration,WAD00,Training fees,0011,1398.00,Park Hill Training Ltd,148323,08/05/2014,10201091
INSERTED DETAIL,Resources & Corporate Governance ,General Administration,WAD00,Training fees,0011,496.00,Park Hill Training Ltd,148323,08/05/2014,10201356
INSERTED DETAIL,Resources & Corporate Governance ,General Administration,WAD00,Training fees,0011,486.00,Park Hill Training Ltd,148323,22/05/2014,10202193
INSERTED DETAIL,Resources & Corporate Governance ,Human Resources Centralised Services,RES31,Employee wellbeing/Other employee expenses,0021,625.00,Anna Mason,148418,22/05/2014,10202276
INSERTED DETAIL,Capital Programme ,Pettiver Crescent,PCH00,Capital Contract Payments,5000,1599.38,"Gotch, Saunders & Surridge LLP , t/a GSS Architecture",148432,01/05/2014,10201375
INSERTED DETAIL,Capital Programme ,Woodside Gypsy & Traveller Caravan Site,RNA05,Capital Contract Payments,5000,2050.00,"Gotch, Saunders & Surridge LLP , t/a GSS Architecture",148432,01/05/2014,10201503
INSERTED DETAIL,Capital Programme ,Open Spaces Refurbishment,LEI08,Capital Contract Payments,5000,22150.65,J P Landscapes & Construction Ltd,148502,15/05/2014,10202012
INSERTED DETAIL,Resources & Corporate Governance,Housing Maintenance,WHM00,External Contractor & Operator,0742,2620.00,Garforth Scaffolding Ltd,148530,22/05/2014,10201917
INSERTED DETAIL,Capital Programme ,Open Spaces Refurbishment,LEI08,Capital Contract Payments,5000,2268.00,Kova Landscape Ltd,148635,29/05/2014,10202375
INSERTED DETAIL,Capital Programme ,Open Spaces Refurbishment,LEI08,Capital Contract Payments,5000,450.00,Kova Landscape Ltd,148635,29/05/2014,10202376
INSERTED DETAIL,Resources & Corporate Governance ,Land Charges,LCH00,Maintenance of Equipment,0301,580.39,CCS Media Ltd,148725,15/05/2014,10202078
INSERTED DETAIL,Housing Revenue Account ,Gas Heating Systems,UMR01,R&M External Contractors,0100,866.92,Robert Heath Heating Ltd,148858,01/05/2014,10200878
INSERTED DETAIL,Housing Revenue Account ,Gas Heating Systems,UMR01,R&M External Contractors,0100,29651.92,Robert Heath Heating Ltd,148858,29/05/2014,10202786
INSERTED DETAIL,Resources & Corporate Governance ,Customer and Information Strategy,CIS10,Hardware Maintenance,0376,428.00,Sapphire Network Services Ltd,148862,01/05/2014,10201505
INSERTED DETAIL,Sustainable Environment ,Parks,PKS00,External Contractor & Operator,0742,2820.00,F M Deery Sports Ground Maintenance,148915,29/05/2014,10201780
INSERTED DETAIL,Economy Development & Culture,The Benn Hall,BHL00,Purchases for Resale,0305,3263.05,Matthew Clark Wholesale Ltd,148975,15/05/2014,10202040
INSERTED DETAIL,Resources & Corporate Governance,Housing Maintenance,WHM00,External Contractor & Operator,0742,629.50,D & M Ball Carpets,149023,29/05/2014,10202361
INSERTED DETAIL,Economy Development & Culture,Visitor Centre,VSC00,Purchases for Resale,0305,517.50,Canterbury of New Zealand Ltd,149040,29/05/2014,10202630
INSERTED DETAIL,Resources & Corporate Governance,Housing Maintenance,WHM00,External Contractor & Operator,0742,500.00,PJR Services,149062,15/05/2014,10202036
INSERTED DETAIL,Resources & Corporate Governance,Housing Maintenance,WHM00,External Contractor & Operator,0742,500.00,PJR Services,149062,29/05/2014,10202455
INSERTED DETAIL,Housing Revenue Account ,Property Maintenance,MAN23,Training fees,0011,595.95,Midlands Gas Assessments Birmingham Ltd,149086,01/05/2014,10201344
INSERTED DETAIL,Housing Revenue Account ,Repairs and Maintenance - Void works,UMR09,R&M External Contractors,0100,600.00,Elite Surveyors Ltd,149107,22/05/2014,10202258
INSERTED DETAIL,Capital Programme ,Crematorium Project,BUR04,IT Capital Expenditure,5025,2125.00,ICOMM Technologies Ltd,149115,15/05/2014,10200395
INSERTED DETAIL,Resources & Corporate Governance ,Public Services Network,PSN00,IT Capital Expenditure,5025,4460.00,ICOMM Technologies Ltd,149115,29/05/2014,10202623
INSERTED DETAIL,Resources & Corporate Governance ,Public Services Network,PSN00,IT Capital Expenditure,5025,955.52,ICOMM Technologies Ltd,149115,29/05/2014,10202624
INSERTED DETAIL,Resources & Corporate Governance ,Public Services Network,PSN00,IT Capital Expenditure,5025,8500.00,ICOMM Technologies Ltd,149115,29/05/2014,10202625
INSERTED DETAIL,Resources & Corporate Governance ,Public Services Network,PSN00,IT Capital Expenditure,5025,6950.00,ICOMM Technologies Ltd,149115,29/05/2014,10202626
INSERTED DETAIL,Resources & Corporate Governance ,Public Services Network,PSN00,IT Capital Expenditure,5025,9824.92,ICOMM Technologies Ltd,149115,29/05/2014,10202627
INSERTED DETAIL,Resources & Corporate Governance ,Public Services Network,PSN00,IT Capital Expenditure,5025,9904.97,ICOMM Technologies Ltd,149115,29/05/2014,10202628
INSERTED DETAIL,Resources & Corporate Governance ,Town Hall,OFF00,Contract Cleaning,0170,4195.83,Superclean Services Wothorpe,149153,08/05/2014,10201575
INSERTED DETAIL,Resources & Corporate Governance ,WSU Depot,WDP00,Contract Cleaning,0170,395.83,Superclean Services Wothorpe,149153,08/05/2014,10201575
INSERTED DETAIL,Resources & Corporate Governance ,Grounds Maintenance,WGM00,Contract Cleaning,0170,200.00,Superclean Services Wothorpe,149153,08/05/2014,10201575
INSERTED DETAIL,Housing Revenue Account ,Sheltered Housing,AGP00,Contract Cleaning,0170,11850.58,Superclean Services Wothorpe,149153,15/05/2014,10201578
INSERTED DETAIL,Sustainable Inclusive Communities,Housing Options Team,HOT00,Contract Cleaning,0170,112.51,Superclean Services Wothorpe,149153,15/05/2014,10201578
INSERTED DETAIL,Housing Revenue Account ,Estate Management,MAN22,Contract Cleaning,0170,2552.47,Superclean Services Wothorpe,149153,15/05/2014,10201578
INSERTED DETAIL,Housing Revenue Account ,Multi-Storey Flats,MSF00,Contract Cleaning,0170,1434.45,Superclean Services Wothorpe,149153,15/05/2014,10201578
INSERTED DETAIL,,Balance Sheet,BS,Car Loan Scheme,9261,3970.00,West Midlands Motors Ltd,149232,08/05/2014,10201835
INSERTED DETAIL,Economy Development & Culture,Queens Diamond Jubilee Centre,QDJ00,External Contractor & Operator,0742,2759.54,GLL ( Greenwich Leisure Ltd),149240,15/05/2014,10202241
INSERTED DETAIL,Capital Programme ,Pettiver Crescent,PCH00,Capital Contract Payments,5000,178376.22,Wates Construction Ltd,149267,15/05/2014,10202060
INSERTED DETAIL,Resources & Corporate Governance,Housing Maintenance,WHM00,External Contractor & Operator,0742,700.00,Sprint Industrial Supplies Ltd,149342,15/05/2014,10201014
INSERTED DETAIL,Resources & Corporate Governance,Housing Maintenance,WHM00,External Contractor & Operator,0742,792.00,CSC Forecourt Services Ltd,149405,01/05/2014,10201279
INSERTED DETAIL,Sustainable Environment,Crematorium,CRM00,R&M External Contractors,0100,13387.50,Facultatieve Technologies Limited,149571,01/05/2014,10201296
INSERTED DETAIL,Sustainable Environment,Crematorium,CRM00,New Equipment,0300,2193.75,Facultatieve Technologies Limited,149571,15/05/2014,10201631
INSERTED DETAIL,Sustainable Environment,Crematorium,CRM00,New Equipment,0300,563.74,Facultatieve Technologies Limited,149571,15/05/2014,10201922
INSERTED DETAIL,Capital Programme ,Crematorium Project,BUR04,Capital Contract Payments,5000,3846.00,Christian Day Limited,149629,08/05/2014,10201052
INSERTED DETAIL,Capital Programme ,Crematorium Project,BUR04,Capital Contract Payments,5000,1164.00,Christian Day Limited,149629,08/05/2014,10201053
INSERTED DETAIL,Resources & Corporate Governance ,Human Resources Centralised Services,RES31,Training fees,0011,1800.00,Achilles Information Ltd,149630,29/05/2014,10202769
INSERTED DETAIL,Capital Programme ,Queen's Diamond Jubilee Leisure Centre Project,LEI03,Capital Contract Payments,5000,1420.00,Plinth 2000 Ltd,149635,01/05/2014,10201434
INSERTED DETAIL,Resources & Corporate Governance ,Grounds Maintenance,WGM00,R&M External Contractors,0100,2854.30,National Polytunnels Limited,149657,08/05/2014,10201533
INSERTED DETAIL,Sustainable Environment,Crematorium,CRM00,External Contractor & Operator,0742,972.50,Tracey Daulman,149686,22/05/2014,10202335
INSERTED DETAIL,Sustainable Environment,Crematorium,CRM00,External Contractor & Operator,0742,1004.00,A A Gibson,149696,01/05/2014,10201413
INSERTED DETAIL,Sustainable Environment,Crematorium,CRM00,External Contractor & Operator,0742,4792.00,A A Gibson,149696,15/05/2014,10202065
INSERTED DETAIL,Resources & Corporate Governance,Corporate Property R&M,CPA01,R&M External Contractors,0100,649.00,Hamworthy Heating Ltd,149707,08/05/2014,10201792
INSERTED DETAIL,Sustainable Inclusive Communities,Housing Options Team,HOT00,Rents,0140,513.15,Hylands Hotel Coventry,149730,08/05/2014,10201740
INSERTED DETAIL,Economy Development & Culture,Visitor Centre,VSC00,Purchases for Resale,0305,744.24,Culinary Concepts (London) Ltd,149732,15/05/2014,10202133
INSERTED DETAIL,Economy Development & Culture,Building Regulation Fee Earning Account,BCS99,Subscriptions,0421,967.25,Resolution Data Management Ltd,149738,08/05/2014,10201625
INSERTED DETAIL,Economy Development & Culture,The Benn Hall,BHL00,Special Events/Activities,0447,800.00,Makin Projects Ltd,149758,15/05/2014,10202017
detail,Resources & Corporate Governance ,Grounds Maintenance,WGM00,Other Miscellaneous Expenses,0444,550.00,Automotive Bodycraft Ltd,149777,29/05/2014,10202446
,,Balance Sheet,BS,Council Tax Refund,9256,1071.00,Mr B P Davidson,,07/05/2014,31881
,Sustainable Environment,Private Hire Vehicles,HKC01,Pre Employment Checks,0444,1188.00,CRB,,15/05/2014,32009
,,Balance Sheet,BS,Cov & Warks Pooling Fund,9476,1406994.00,Cov & Warks Pooling Fund,,16/05/2014,31998
,,Balance Sheet,BS,Business Rate Retention Scheme payment,9476,2070453.00,CLG,,19/05/2014,32025
,,Balance Sheet,BS,Business Rate Retention Scheme payment,9476,414702.00,WCC County Fund,,19/05/2014,32019
,Resources & Corporate Governance,,GFS00,Payment Card Costs,0445,1252.01,Capita,,27/05/2014,32103
,Economy Development & Culture,The Benn Hall,BHL00,Purchases for Resale,0305,673.82,Booker Ltd,,28/05/2014,32124
